Portfolio,Expense Area,Cost Centre,Expense Type,Account Code,Amount,Supplier Name,SupplierId,Pay Date,Transaction No.
Resources & Corporate Governance ,Grounds Maintenance,WGM00,Materials,0303,490.66,Arco Limited,100015,05/07/2012,10169603
Resources & Corporate Governance ,Street Cleansing,WSC00,Materials,0303,88.40,Arco Limited,100015,05/07/2012,10169603
Resources & Corporate Governance ,General Administration,WAD00,Personal Protective Clothing,0340,128.00,Arco Limited,100015,05/07/2012,10169603
Resources & Corporate Governance ,Toilet Cleaning,WBC01,Personal Protective Clothing,0340,2.70,Arco Limited,100015,05/07/2012,10169603
Resources & Corporate Governance ,Grounds Maintenance,WGM00,Personal Protective Clothing,0340,28.31,Arco Limited,100015,05/07/2012,10169603
Resources & Corporate Governance ,Highways,WHG00,Personal Protective Clothing,0340,4.05,Arco Limited,100015,05/07/2012,10169603
Resources & Corporate Governance,Handy man,WHM00,Personal Protective Clothing,0340,41.90,Arco Limited,100015,05/07/2012,10169603
Resources & Corporate Governance ,Street Cleansing,WSC00,Personal Protective Clothing,0340,32.38,Arco Limited,100015,05/07/2012,10169603
Resources & Corporate Governance ,Garage Internal,WVR01,Personal Protective Clothing,0340,5.40,Arco Limited,100015,05/07/2012,10169603
Resources & Corporate Governance ,Domestic Waste Collection,WWC00,Personal Protective Clothing,0340,56.66,Arco Limited,100015,05/07/2012,10169603
Resources & Corporate Governance ,Trade Waste Collection,WWC01,Personal Protective Clothing,0340,5.40,Arco Limited,100015,05/07/2012,10169603
Resources & Corporate Governance ,Grounds Maintenance,WGM00,Materials,0303,9.99,Arco Limited,100015,20/07/2012,10170224
Resources & Corporate Governance ,Street Cleansing,WSC00,Tools,0304,29.72,Arco Limited,100015,20/07/2012,10170224
Resources & Corporate Governance ,Toilet Cleaning,WBC01,Personal Protective Clothing,0340,10.96,Arco Limited,100015,20/07/2012,10170224
Resources & Corporate Governance ,Grounds Maintenance,WGM00,Personal Protective Clothing,0340,115.29,Arco Limited,100015,20/07/2012,10170224
Resources & Corporate Governance ,Highways,WHG00,Personal Protective Clothing,0340,16.47,Arco Limited,100015,20/07/2012,10170224
Resources & Corporate Governance ,Street Cleansing,WSC00,Personal Protective Clothing,0340,131.76,Arco Limited,100015,20/07/2012,10170224
Resources & Corporate Governance ,Garage Internal,WVR01,Personal Protective Clothing,0340,21.96,Arco Limited,100015,20/07/2012,10170224
Resources & Corporate Governance ,Domestic Waste Collection,WWC00,Personal Protective Clothing,0340,230.57,Arco Limited,100015,20/07/2012,10170224
Resources & Corporate Governance ,Trade Waste Collection,WWC01,Personal Protective Clothing,0340,21.96,Arco Limited,100015,20/07/2012,10170224
Capital Program ,Tenants Participation Scheme,HCE02,Capital Contract Payments,5000,1613.00,AWM Electrical Contractors Ltd,100051,12/07/2012,10169523
Housing Revenue Account ,Unplanned Maintenance and Repair,UMR00,R&M External Contractors,0100,1970.19,AWM Electrical Contractors Ltd,100051,12/07/2012,10170136
Housing Revenue Account ,Unplanned Maintenance and Repair,UMR00,R&M External Contractors,0100,1179.34,AWM Electrical Contractors Ltd,100051,12/07/2012,10170137
Housing Revenue Account ,Unplanned Maintenance and Repair,UMR00,R&M External Contractors,0100,623.38,AWM Electrical Contractors Ltd,100051,12/07/2012,10170319
Housing Revenue Account ,Unplanned Maintenance and Repair,UMR00,R&M External Contractors,0100,2804.96,AWM Electrical Contractors Ltd,100051,20/07/2012,10170622
Housing Revenue Account ,Unplanned Maintenance and Repair,UMR00,R&M External Contractors,0100,2222.58,AWM Electrical Contractors Ltd,100051,26/07/2012,10170945
Resources & Corporate Governance,Corporate Property R&M,CPA01,R&M External Contractors,0100,1004.16,Adt Fire & Security plc,100070,12/07/2012,10168986
Resources & Corporate Governance,Corporate Property R&M,CPA01,R&M External Contractors,0100,719.64,Adt Fire & Security plc,100070,12/07/2012,10168987
Resources & Corporate Governance,Corporate Property R&M,CPA01,R&M External Contractors,0100,639.10,Adt Fire & Security plc,100070,12/07/2012,10168988
Housing Revenue Account ,Unplanned Maintenance and Repair,UMR00,R&M External Contractors,0100,1426.59,Andy Woods Landscapes,100078,12/07/2012,10170322
Housing Revenue Account ,Unplanned Maintenance and Repair,UMR00,R&M External Contractors,0100,956.33,Andy Woods Landscapes,100078,20/07/2012,10170510
Housing Revenue Account ,Unplanned Maintenance and Repair,UMR00,R&M External Contractors,0100,859.71,Andy Woods Landscapes,100078,26/07/2012,10170951
Capital Program ,Kitchen Modifications,HIK10,Capital Contract Payments,5000,624.11,A C E Carpentry & Joinery Contractors Ltd,100085,26/07/2012,10170797
Housing Revenue Account ,Gas Heating Systems,UMR01,R&M External Contractors,0100,7512.00,G G Batchelor & Son Ltd,100139,05/07/2012,10168394
Sustainable Environment ,Grass Cutting,PKS13,External Contractor & Operator,0742,3827.00,Brandon And Bretford Parish Council,100153,26/07/2012,10170751
Resources & Corporate Governance ,Council Tax and NNDR Collection,CTX01,External Contractor & Operator,0742,281.00,Bristow & Sutor,100159,20/07/2012,10170284
Sustainable Inclusive Communities,CL Grants,CGS00,Grants To Voluntary Organisations,0720,3650.00,Benn Partnership Centre,100235,26/07/2012,10170857
Capital Program ,Capital Partnership Fund,CGR01,Capital Grants,5014,1718.60,Benn Partnership Centre,100235,26/07/2012,10170858
Capital Program ,Capital Partnership Fund,CGR01,Capital Grants,5014,9522.48,Benn Partnership Centre,100235,26/07/2012,10170863
Housing Revenue Account ,Unplanned Maintenance and Repair,UMR00,R&M External Contractors,0100,1721.20,Bowen Builders,100241,05/07/2012,10169659
Housing Revenue Account ,Unplanned Maintenance and Repair,UMR00,R&M External Contractors,0100,724.86,Bowen Builders,100241,12/07/2012,10170132
Capital Program ,Disabled Adaptations,HCR01,Capital Contract Payments,5000,88.05,Bowen Builders,100241,12/07/2012,10170132
Housing Revenue Account ,Unplanned Maintenance and Repair,UMR00,R&M External Contractors,0100,802.64,Bowen Builders,100241,12/07/2012,10170133
Housing Revenue Account ,Unplanned Maintenance and Repair,UMR00,R&M External Contractors,0100,797.60,Bowen Builders,100241,20/07/2012,10170620
Housing Revenue Account ,Unplanned Maintenance and Repair,UMR00,R&M External Contractors,0100,1095.85,Bowen Builders,100241,26/07/2012,10170947
Economy Development & Culture,AGM Conservation/Documentation,AGM01,Other Miscellaneous Expenses,0444,1410.00,Charles Watts Engineering Ltd,100302,05/07/2012,10169641
Resources & Corporate Governance ,Domestic Waste Collection,WWC00,Vehicle Repair and Maintenance,0200,3645.00,Charles Watts Engineering Ltd,100302,26/07/2012,10170814
Resources & Corporate Governance,Corporate Property R&M,CPA01,R&M External Contractors,0100,712.00,Chillaire Service & Maintenance Ltd,100305,05/07/2012,10169088
Resources & Corporate Governance,Corporate Property R&M,CPA01,R&M External Contractors,0100,4940.00,Chillaire Service & Maintenance Ltd,100305,05/07/2012,10169089
Resources & Corporate Governance,Corporate Property R&M,CPA01,R&M External Contractors,0100,455.02,Chillaire Service & Maintenance Ltd,100305,20/07/2012,10170446
Resources & Corporate Governance ,Human Resources Centralised Services,RES31,Training fees,0011,1275.00,Coventry City Council,100320,12/07/2012,10169768
Resources & Corporate Governance ,General Administration,WAD00,Hardware Purchase,0375,520.00,Stone Computers,100390,20/07/2012,10170534
Resources & Corporate Governance ,General Administration,WAD00,Hardware Purchase,0375,520.00,Stone Computers,100390,26/07/2012,10170833
Sustainable Environment ,Clinical Waste,REF04,External Contractor & Operator,0742,558.95,OCS Group UK Ltd t/a Cannon,100436,20/07/2012,10170227
Resources & Corporate Governance,Central Business Support Services,CSS15,Photocopying,0354,519.20,Canon (UK) Limited,100514,12/07/2012,10170085
Resources & Corporate Governance,Corporate Property R&M,CPA01,R&M External Contractors,0100,420.13,I R Security & Safety Ltd,100572,12/07/2012,10169430
Economy Development & Culture,Building Control Services,BCS00,Subscriptions,0421,802.15,District Surveyors Association Limited,100582,20/07/2012,10170443
Economy Development & Culture,Building Regulation Fee Earning Account,BCS99,Subscriptions,0421,1063.32,District Surveyors Association Limited,100582,20/07/2012,10170443
Capital Program ,Kitchen Modifications,HIK10,Capital Contract Payments,5000,2275.00,JADA Building & Maintenance Services Ltd,100583,05/07/2012,10169205
Housing Revenue Account ,Unplanned Maintenance and Repair,UMR00,R&M External Contractors,0100,3319.99,JADA Building & Maintenance Services Ltd,100583,12/07/2012,10170134
Housing Revenue Account ,Supervision and Management General,MAN00,Estates,0457,27.50,JADA Building & Maintenance Services Ltd,100583,12/07/2012,10170134
Capital Program ,Disabled Adaptations,HCR01,Capital Contract Payments,5000,90.33,JADA Building & Maintenance Services Ltd,100583,12/07/2012,10170134
Housing Revenue Account ,Unplanned Maintenance and Repair,UMR00,R&M External Contractors,0100,2976.54,JADA Building & Maintenance Services Ltd,100583,12/07/2012,10170135
Housing Revenue Account ,Unplanned Maintenance and Repair,UMR00,R&M External Contractors,0100,4907.94,JADA Building & Maintenance Services Ltd,100583,26/07/2012,10170621
Housing Revenue Account ,Estate Management,MAN22,Estates,0457,30.23,JADA Building & Maintenance Services Ltd,100583,26/07/2012,10170621
Capital Program ,Fire Risk Assessment,HCE18,Capital Contract Payments,5000,2827.25,JADA Building & Maintenance Services Ltd,100583,26/07/2012,10170621
Housing Revenue Account ,Unplanned Maintenance and Repair,UMR00,R&M External Contractors,0100,4545.91,JADA Building & Maintenance Services Ltd,100583,26/07/2012,10170948
Capital Program ,Disabled Adaptations,HCR01,Capital Contract Payments,5000,49.86,JADA Building & Maintenance Services Ltd,100583,26/07/2012,10170948
Housing Revenue Account ,Unplanned Maintenance and Repair,UMR00,R&M External Contractors,0100,2509.71,Lee Davies Decorating,100600,12/07/2012,10170145
Housing Revenue Account ,Repainting Schemes,UMR02,R&M External Contractors,0100,2070.15,Lee Davies Decorating,100600,12/07/2012,10170145
Housing Revenue Account ,Repainting Schemes,UMR02,R&M External Contractors,0100,3939.28,Lee Davies Decorating,100600,26/07/2012,10170873
Housing Revenue Account ,Sheltered Housing Team,MAN21,Estates,0457,113.52,Lee Davies Decorating,100600,26/07/2012,10170873
Housing Revenue Account ,Tanser Court AP,AGP17,Gas,0131,1063.63,ESPO,100641,26/07/2012,10170078
Housing Revenue Account ,Tanser Court AP,AGP17,Gas,0131,2017.88,ESPO,100641,26/07/2012,10170079
Resources & Corporate Governance,Corporate Property Central Utilities,CPA02,Gas,0131,1259.98,ESPO,100641,20/07/2012,10170080
Resources & Corporate Governance,Corporate Property Central Utilities,CPA02,Gas,0131,1431.42,ESPO,100641,20/07/2012,10170081
Resources & Corporate Governance,Corporate Property Central Utilities,CPA02,Gas,0131,1086.42,ESPO,100641,20/07/2012,10170301
Resources & Corporate Governance,Corporate Property Central Utilities,CPA02,Gas,0131,422.77,ESPO,100641,20/07/2012,10170333
Housing Revenue Account ,Albert Square AP,AGP20,Gas,0131,1691.23,ESPO,100641,26/07/2012,10170456
Housing Revenue Account ,Albert Square AP,AGP20,Gas,0131,1187.85,ESPO,100641,26/07/2012,10170457
Housing Revenue Account ,Albert Square AP,AGP20,Gas,0131,3147.80,ESPO,100641,26/07/2012,10170458
Housing Revenue Account ,Albert Square AP,AGP20,Gas,0131,-2490.59,ESPO,100641,26/07/2012,10170459
Housing Revenue Account ,Lesley Souter House AP,AGP16,Gas,0131,1130.79,ESPO,100641,26/07/2012,10170460
Housing Revenue Account ,Lesley Souter House AP,AGP16,Gas,0131,871.25,ESPO,100641,26/07/2012,10170461
Housing Revenue Account ,Lesley Souter House AP,AGP16,Gas,0131,2747.30,ESPO,100641,26/07/2012,10170462
Housing Revenue Account ,Lesley Souter House AP,AGP16,Gas,0131,-1832.20,ESPO,100641,26/07/2012,10170463
Resources & Corporate Governance,Corporate Property Central Utilities,CPA02,Gas,0131,998.47,ESPO,100641,26/07/2012,10170562
Housing Revenue Account ,Albert Square AP,AGP20,Gas,0131,976.03,ESPO,100641,26/07/2012,10170564
Housing Revenue Account ,Lesley Souter House AP,AGP16,Gas,0131,708.44,ESPO,100641,26/07/2012,10170565
Housing Revenue Account ,Tanser Court AP,AGP17,Gas,0131,910.82,ESPO,100641,26/07/2012,10170566
Resources & Corporate Governance ,Domestic Waste Collection,WWC00,External Contractor & Operator,0742,1135.56,Container Services UK Limited,100811,12/07/2012,10169779
Resources & Corporate Governance ,General Administration,WAD00,Training fees,0011,1098.00,Freight Transport Association,100830,12/07/2012,10169823
,Balance Sheet,BS,Car Leasing Scheme,9244,-716.04,Lex Autolease Ltd,100844,20/07/2012,10169782
,Balance Sheet,BS,Car Leasing Scheme,9244,497.50,Lex Autolease Ltd,100844,20/07/2012,10169783
,Balance Sheet,BS,Car Leasing Scheme,9244,2309.60,Lex Autolease Ltd,100844,20/07/2012,10170442
,Balance Sheet,BS,Car Leasing Scheme,9244,10946.00,Lex Autolease Ltd,100844,26/07/2012,10170750
Resources & Corporate Governance ,Domestic Waste Collection,WWC00,Vehicle Repair and Maintenance,0200,517.63,FAUN Zoeller (UK) Ltd,100871,26/07/2012,10170594
Sustainable Inclusive Communities,CL Grants,CGS00,Grants To Voluntary Organisations,0720,2625.00,Grandborough Parish Council,100889,12/07/2012,10169781
Resources & Corporate Governance ,Town Hall,OFF00,Materials,0303,578.00,Greenham,100890,12/07/2012,10169316
Sustainable Environment ,Caldecott Park/Town Centre Area,PKS00,Maintenance of Equipment,0301,511.58,GB Sport & Leisure UK Ltd,100920,12/07/2012,10170005
Resources & Corporate Governance ,Human Resources Centralised Services,RES31,Recruitment Expenses,0012,867.74,TMP (UK) LTD,100972,12/07/2012,10169849
Resources & Corporate Governance,Corporate Property R&M,CPA01,R&M External Contractors,0100,1190.00,ThyssenKrupp Elevator UK,100985,12/07/2012,10169639
Capital Program ,Disabled Adaptations,HCR01,Capital Contract Payments,5000,15205.13,B Hartwell Plumbers Ltd,100989,05/07/2012,10169997
Capital Program ,Bathroom Modifications,HIS01,Capital Contract Payments,5000,720.00,B Hartwell Plumbers Ltd,100989,05/07/2012,10169997
Resources & Corporate Governance ,Grounds Maintenance,WGM00,Materials,0303,2055.00,James Coles & Sons (Nurseries) Ltd,101165,05/07/2012,10169640
Resources & Corporate Governance ,Grounds Maintenance,WGM00,External Contractor & Operator,0742,7484.00,K A Hicks,101216,26/07/2012,10170969
Capital Program ,Kitchen Modifications,HIK10,R&M External Contractors,0100,521.16,M & J Engineers Ltd,101278,05/07/2012,10169769
Housing Revenue Account ,Repainting Schemes,UMR02,R&M External Contractors,0100,2410.87,MBG Decorators (Rugby Ltd),101288,05/07/2012,10169664
Resources & Corporate Governance,Corporate Property R&M,CPA01,R&M External Contractors,0100,1800.00,MBG Decorators (Rugby Ltd),101288,12/07/2012,10169996
Housing Revenue Account ,Unplanned Maintenance and Repair,UMR00,R&M External Contractors,0100,1300.11,MBG Decorators (Rugby Ltd),101288,12/07/2012,10170139
Housing Revenue Account ,Repainting Schemes,UMR02,R&M External Contractors,0100,3725.89,MBG Decorators (Rugby Ltd),101288,12/07/2012,10170139
Housing Revenue Account ,Unplanned Maintenance and Repair,UMR00,R&M External Contractors,0100,340.00,MBG Decorators (Rugby Ltd),101288,12/07/2012,10170321
Housing Revenue Account ,Repainting Schemes,UMR02,R&M External Contractors,0100,2937.87,MBG Decorators (Rugby Ltd),101288,12/07/2012,10170321
Housing Revenue Account ,Repainting Schemes,UMR02,R&M External Contractors,0100,3998.40,MBG Decorators (Rugby Ltd),101288,26/07/2012,10170872
Housing Revenue Account ,Unplanned Maintenance and Repair,UMR00,R&M External Contractors,0100,2935.09,MBG Decorators (Rugby Ltd),101288,26/07/2012,10170950
Housing Revenue Account ,Repainting Schemes,UMR02,R&M External Contractors,0100,3201.10,MBG Decorators (Rugby Ltd),101288,26/07/2012,10170950
Resources & Corporate Governance,Handy man,WHM00,Materials,0303,449.01,Melbros Ltd,101291,05/07/2012,10167817
Resources & Corporate Governance,Handy man,WHM00,Materials,0303,420.00,Melbros Ltd,101291,12/07/2012,10169941
Capital Program ,Parish and Rural Capital Spending,CGR03,Capital Grants,5014,5763.90,Newton & Biggin Parish Council,101366,26/07/2012,10170856
Resources & Corporate Governance ,Street Cleansing,WSC00,Vehicle Repair and Maintenance,0200,656.10,Noden Truck Centre Ltd,101368,26/07/2012,10170838
Economy Development & Culture,Visitor Centre,VSC00,Events Tickets - Zero Rated,1405,1860.90,National Express Ltd,101392,05/07/2012,10169770
Capital Program ,RG Disabled Facilities,REN01,Capital Grants,5014,856.80,Heart of England Housing Association,101400,20/07/2012,10170404
Housing Revenue Account ,Sheltered Housing,AGP00,Telephone Expenses,0371,6.55,Orange Personal Communications,101404,12/07/2012,10169475
Sustainable Environment ,Head of Environmental Services,ENV00,Telephone Expenses,0371,9.25,Orange Personal Communications,101404,12/07/2012,10169475
Resources & Corporate Governance ,WSU Depot,WDP00,Telephone Expenses,0371,407.56,Orange Personal Communications,101404,12/07/2012,10169475
Sustainable Inclusive Communities,Sewage Disposal Plant,SDP00,R&M External Contractors,0100,520.28,PJT Pumping Services,101438,12/07/2012,10170096
Resources & Corporate Governance ,Human Resources Centralised Services,RES31,Training fees,0011,1015.00,Patricia Cresswell & Associates,101494,12/07/2012,10170023
Capital Program ,Heating Upgrades,HIM01,Capital Contract Payments,5000,9212.00,Reeds Plumbing & Heating Contractors Ltd,101504,20/07/2012,10169552
Capital Program ,Pettiver Crescent,PCH00,Capital Contract Payments,5000,747.77,Rugby Borough Council,101516,05/07/2012,10169658
Sustainable Environment ,Caldecott Park/Town Centre Area,PKS00,Rates,0141,2614.19,Rugby Borough Council,101516,19/07/2012,10170447
Resources & Corporate Governance ,Brownsover Community Centre,CPM01,Rates,0141,4725.00,Rugby Borough Council,101516,26/07/2012,10170553
Economy Development & Culture,Art Gallery and Museum,AGM00,Postage & Distribution,0370,36.03,Royal Mail,101554,05/07/2012,10168957
Economy Development & Culture,Building Control Services,BCS00,Postage & Distribution,0370,7.30,Royal Mail,101554,05/07/2012,10168957
Economy Development & Culture,Building Regulation Fee Earning Account,BCS99,Postage & Distribution,0370,9.68,Royal Mail,101554,05/07/2012,10168957
Economy Development & Culture,Car Parks General,CPK01,Postage & Distribution,0370,50.91,Royal Mail,101554,05/07/2012,10168957
Resources & Corporate Governance,Central Business Support Services,CSS15,Postage & Distribution,0370,311.41,Royal Mail,101554,05/07/2012,10168957
Resources & Corporate Governance ,Council Tax and NNDR Collection,CTX01,Postage & Distribution,0370,248.21,Royal Mail,101554,05/07/2012,10168957
Economy Development & Culture,Decrim. of Car Parking on street parking,DPE02,Postage & Distribution,0370,203.66,Royal Mail,101554,05/07/2012,10168957
Resources & Corporate Governance ,Electoral Registration,ERG00,Postage & Distribution,0370,4.50,Royal Mail,101554,05/07/2012,10168957
Sustainable Inclusive Communities,Housing Benefit Administration,HBA00,Postage & Distribution,0370,114.06,Royal Mail,101554,05/07/2012,10168957
Housing Revenue Account ,Supervision and Management General,MAN00,Postage & Distribution,0370,89.86,Royal Mail,101554,05/07/2012,10168957
Economy Development & Culture,Planning General/Income,PLN00,Postage & Distribution,0370,206.32,Royal Mail,101554,05/07/2012,10168957
Economy Development & Culture,Visitor Centre,VSC00,Postage & Distribution,0370,4.17,Royal Mail,101554,05/07/2012,10168957
Resources & Corporate Governance ,General Administration,WAD00,Postage & Distribution,0370,12.50,Royal Mail,101554,05/07/2012,10168957
Economy Development & Culture,Art Gallery and Museum,AGM00,Postage & Distribution,0370,1.32,Royal Mail,101554,20/07/2012,10169253
Economy Development & Culture,Building Control Services,BCS00,Postage & Distribution,0370,6.20,Royal Mail,101554,20/07/2012,10169253
Economy Development & Culture,Building Regulation Fee Earning Account,BCS99,Postage & Distribution,0370,8.23,Royal Mail,101554,20/07/2012,10169253
Economy Development & Culture,Car Parks General,CPK01,Postage & Distribution,0370,15.93,Royal Mail,101554,20/07/2012,10169253
Resources & Corporate Governance,Central Business Support Services,CSS15,Postage & Distribution,0370,352.17,Royal Mail,101554,20/07/2012,10169253
Resources & Corporate Governance ,Council Tax and NNDR Collection,CTX01,Postage & Distribution,0370,5.43,Royal Mail,101554,20/07/2012,10169253
Economy Development & Culture,Decrim. of Car Parking on street parking,DPE02,Postage & Distribution,0370,63.71,Royal Mail,101554,20/07/2012,10169253
Resources & Corporate Governance ,Electoral Registration,ERG00,Postage & Distribution,0370,10.42,Royal Mail,101554,20/07/2012,10169253
Sustainable Inclusive Communities,Housing Benefit Administration,HBA00,Postage & Distribution,0370,90.29,Royal Mail,101554,20/07/2012,10169253
Housing Revenue Account ,Supervision and Management General,MAN00,Postage & Distribution,0370,369.27,Royal Mail,101554,20/07/2012,10169253
Economy Development & Culture,Planning General/Income,PLN00,Postage & Distribution,0370,87.76,Royal Mail,101554,20/07/2012,10169253
Economy Development & Culture,Visitor Centre,VSC00,Postage & Distribution,0370,1.20,Royal Mail,101554,20/07/2012,10169253
Resources & Corporate Governance ,General Administration,WAD00,Postage & Distribution,0370,14.45,Royal Mail,101554,20/07/2012,10169253
Resources & Corporate Governance ,Electoral Registration,ERG00,Postage & Distribution,0370,611.00,Royal Mail,101554,05/07/2012,10169260
Economy Development & Culture,Art Gallery and Museum,AGM00,Postage & Distribution,0370,217.00,Royal Mail,101554,20/07/2012,10169543
Economy Development & Culture,Building Control Services,BCS00,Postage & Distribution,0370,0.80,Royal Mail,101554,20/07/2012,10169543
Economy Development & Culture,Building Regulation Fee Earning Account,BCS99,Postage & Distribution,0370,1.06,Royal Mail,101554,20/07/2012,10169543
Economy Development & Culture,Car Parks General,CPK01,Postage & Distribution,0370,21.70,Royal Mail,101554,20/07/2012,10169543
Resources & Corporate Governance,Central Business Support Services,CSS15,Postage & Distribution,0370,243.33,Royal Mail,101554,20/07/2012,10169543
Resources & Corporate Governance ,Council Tax and NNDR Collection,CTX01,Postage & Distribution,0370,163.45,Royal Mail,101554,20/07/2012,10169543
Economy Development & Culture,Decrim. of Car Parking on street parking,DPE02,Postage & Distribution,0370,86.80,Royal Mail,101554,20/07/2012,10169543
Resources & Corporate Governance ,Electoral Registration,ERG00,Postage & Distribution,0370,3.36,Royal Mail,101554,20/07/2012,10169543
Sustainable Inclusive Communities,Housing Benefit Administration,HBA00,Postage & Distribution,0370,135.10,Royal Mail,101554,20/07/2012,10169543
Housing Revenue Account ,Supervision and Management General,MAN00,Postage & Distribution,0370,1035.19,Royal Mail,101554,20/07/2012,10169543
Economy Development & Culture,Planning General/Income,PLN00,Postage & Distribution,0370,279.27,Royal Mail,101554,20/07/2012,10169543
Economy Development & Culture,Visitor Centre,VSC00,Postage & Distribution,0370,4.38,Royal Mail,101554,20/07/2012,10169543
Resources & Corporate Governance ,General Administration,WAD00,Postage & Distribution,0370,57.05,Royal Mail,101554,20/07/2012,10169543
Resources & Corporate Governance,Central Business Support Services,CSS15,Postage & Distribution,0370,3400.00,Royal Mail,101554,12/07/2012,10169791
Economy Development & Culture,Art Gallery and Museum,AGM00,Postage & Distribution,0370,100.75,Royal Mail,101554,20/07/2012,10170003
Economy Development & Culture,Building Control Services,BCS00,Postage & Distribution,0370,6.31,Royal Mail,101554,20/07/2012,10170003
Economy Development & Culture,Building Regulation Fee Earning Account,BCS99,Postage & Distribution,0370,8.36,Royal Mail,101554,20/07/2012,10170003
Economy Development & Culture,Car Parks General,CPK01,Postage & Distribution,0370,12.34,Royal Mail,101554,20/07/2012,10170003
Resources & Corporate Governance,Central Business Support Services,CSS15,Postage & Distribution,0370,433.36,Royal Mail,101554,20/07/2012,10170003
Resources & Corporate Governance ,Council Tax and NNDR Collection,CTX01,Postage & Distribution,0370,194.72,Royal Mail,101554,20/07/2012,10170003
Economy Development & Culture,Decrim. of Car Parking on street parking,DPE02,Postage & Distribution,0370,49.37,Royal Mail,101554,20/07/2012,10170003
Resources & Corporate Governance ,Electoral Registration,ERG00,Postage & Distribution,0370,4.27,Royal Mail,101554,20/07/2012,10170003
Sustainable Inclusive Communities,Housing Benefit Administration,HBA00,Postage & Distribution,0370,103.66,Royal Mail,101554,20/07/2012,10170003
Housing Revenue Account ,Supervision and Management General,MAN00,Postage & Distribution,0370,49.51,Royal Mail,101554,20/07/2012,10170003
Economy Development & Culture,Planning General/Income,PLN00,Postage & Distribution,0370,364.42,Royal Mail,101554,20/07/2012,10170003
Economy Development & Culture,Visitor Centre,VSC00,Postage & Distribution,0370,3.52,Royal Mail,101554,20/07/2012,10170003
Resources & Corporate Governance ,General Administration,WAD00,Postage & Distribution,0370,23.50,Royal Mail,101554,20/07/2012,10170003
Housing Revenue Account ,Estate Management,MAN22,Debt Counselling,0455,18250.00,Rugby Citizens Advice Bureau,101563,26/07/2012,10170859
Resources & Corporate Governance,Handy man,WHM00,External Contractor & Operator,0742,1080.00,Rugby Plastering Services,101602,05/07/2012,10169472
Resources & Corporate Governance,Handy man,WHM00,External Contractor & Operator,0742,1175.00,Rugby Plastering Services,101602,20/07/2012,10170173
Housing Revenue Account ,Unplanned Maintenance and Repair,UMR00,R&M External Contractors,0100,2839.69,Rugby Plastering Services,101602,12/07/2012,10170317
Housing Revenue Account ,Unplanned Maintenance and Repair,UMR00,R&M External Contractors,0100,1125.70,Rugby Plastering Services,101602,26/07/2012,10170799
Resources & Corporate Governance,Corporate Property Central Utilities,CPA02,Water Services,0143,2568.37,Severn Trent Water Ltd,101610,26/07/2012,10170519
Capital Program ,RG Disabled Facilities,REN01,Capital Grants,5014,4576.00,Stannah Stairlifts Ltd,101623,12/07/2012,10169840
Capital Program ,Disabled Adaptations,HCR01,Capital Contract Payments,5000,5667.28,Stannah Stairlifts Ltd,101623,12/07/2012,10169859
Capital Program ,RG Disabled Facilities,REN01,Capital Grants,5014,5143.00,Stannah Stairlifts Ltd,101623,20/07/2012,10170403
Capital Program ,Disabled Adaptations,HCR01,Capital Contract Payments,5000,3832.00,Stannah Stairlifts Ltd,101623,20/07/2012,10170522
Resources & Corporate Governance ,Domestic Waste Collection,WWC00,Vehicle Running Costs,0201,1440.00,HI-Q Motorway,101736,05/07/2012,10169569
Resources & Corporate Governance ,Highways,WHG00,Vehicle Running Costs,0201,103.00,HI-Q Motorway,101736,12/07/2012,10170066
Resources & Corporate Governance ,Street Cleansing,WSC00,Vehicle Running Costs,0201,26.00,HI-Q Motorway,101736,12/07/2012,10170066
Resources & Corporate Governance ,Domestic Waste Collection,WWC00,Vehicle Running Costs,0201,70.00,HI-Q Motorway,101736,12/07/2012,10170066
Resources & Corporate Governance ,Trade Waste Collection,WWC01,Vehicle Running Costs,0201,406.00,HI-Q Motorway,101736,12/07/2012,10170066
Resources & Corporate Governance ,Domestic Waste Collection,WWC00,Vehicle Running Costs,0201,1070.47,HI-Q Motorway,101736,20/07/2012,10170371
Resources & Corporate Governance ,Domestic Waste Collection,WWC00,Vehicle Running Costs,0201,824.00,HI-Q Motorway,101736,26/07/2012,10170718
Resources & Corporate Governance ,Trade Waste Collection,WWC01,Vehicle Running Costs,0201,415.00,HI-Q Motorway,101736,26/07/2012,10170718
Resources & Corporate Governance ,Trade Waste Collection,WWC01,Materials,0303,3571.95,Egbert H. Taylor & Co Ltd,101741,05/07/2012,10169369
Resources & Corporate Governance ,Domestic Waste Collection,WWC00,Vehicle Repair and Maintenance,0200,415.98,Terberg Matec Uk,101761,12/07/2012,10170220
Resources & Corporate Governance ,Trade Waste Collection,WWC01,Vehicle Repair and Maintenance,0200,69.60,Terberg Matec Uk,101761,12/07/2012,10170220
Resources & Corporate Governance ,Domestic Waste Collection,WWC00,Other Insurance Excesses,0441,100.00,Terberg Matec Uk,101761,26/07/2012,10170747
Economy Development & Culture,Car Parks General,CPK01,Telephone Expenses,0371,197.50,Vodafone Corporate Ltd,101831,26/07/2012,10171004
Economy Development & Culture,Decrim. of Car Parking on street parking,DPE02,Telephone Expenses,0371,790.00,Vodafone Corporate Ltd,101831,26/07/2012,10171004
Economy Development & Culture,Economic Development General,ECD00,Development Activities,0450,5500.00,Warwickshire County Council,101841,26/07/2012,10169653
Housing Revenue Account ,Unplanned Maintenance and Repair,UMR00,R&M External Contractors,0100,670.05,Wolseley UK Limited,101851,20/07/2012,10170076
Housing Revenue Account ,Maintenance of Open Spaces,MOS00,External Contractor & Operator,0742,256.00,Wolvey Parish Council,101853,26/07/2012,10170970
Sustainable Environment ,Grass Cutting,PKS13,External Contractor & Operator,0742,1551.00,Wolvey Parish Council,101853,26/07/2012,10170970
Housing Revenue Account ,Unplanned Maintenance and Repair,UMR00,R&M External Contractors,0100,3893.55,Warwickshire County Council,101893,12/07/2012,10170095
Housing Revenue Account ,Unplanned Maintenance and Repair,UMR00,R&M External Contractors,0100,2323.60,Warwickshire County Council,101893,26/07/2012,10170612
Sustainable Inclusive Communities,Housing Strategy & Enabling,HSE00,External Contractor & Operator,0742,8570.00,Actonenergy,101907,12/07/2012,10170202
Resources & Corporate Governance,Corporate Property R&M,CPA01,R&M External Contractors,0100,1620.00,Darren Wilson Roofing Ltd,101911,05/07/2012,10169660
Resources & Corporate Governance ,Grounds Maintenance,WGM00,Vehicle Repair and Maintenance,0200,701.64,Watling JCB Limited,101922,12/07/2012,10170052
Capital Program ,Heating Upgrades,HIM01,Capital Contract Payments,5000,4152.00,Adroit Services Ltd,101939,12/07/2012,10169370
Capital Program ,Heating Upgrades,HIM01,Capital Contract Payments,5000,4152.00,Adroit Services Ltd,101939,12/07/2012,10169876
Housing Revenue Account ,Unplanned Maintenance and Repair,UMR00,R&M External Contractors,0100,728.34,Adroit Services Ltd,101939,12/07/2012,10170138
Capital Program ,Disabled Adaptations,HCR01,Capital Contract Payments,5000,291.63,Adroit Services Ltd,101939,12/07/2012,10170138
Housing Revenue Account ,Unplanned Maintenance and Repair,UMR00,R&M External Contractors,0100,847.58,Adroit Services Ltd,101939,12/07/2012,10170320
Capital Program ,Disabled Adaptations,HCR01,Capital Contract Payments,5000,97.21,Adroit Services Ltd,101939,12/07/2012,10170320
Capital Program ,Heating Upgrades,HIM01,Capital Contract Payments,5000,6228.00,Adroit Services Ltd,101939,20/07/2012,10170412
Resources & Corporate Governance,Handy man,WHM00,External Contractor & Operator,0742,462.93,Adroit Services Ltd,101939,20/07/2012,10170661
Housing Revenue Account ,Unplanned Maintenance and Repair,UMR00,R&M External Contractors,0100,763.81,Adroit Services Ltd,101939,26/07/2012,10170871
Capital Program ,Disabled Adaptations,HCR01,Capital Contract Payments,5000,328.43,Adroit Services Ltd,101939,26/07/2012,10170871
Resources & Corporate Governance ,"Communications, Consultation and Information Team",BTR20,Publicity & Marketing,0377,837.71,Johnston Publishing Ltd,107468,05/07/2012,10169532
Resources & Corporate Governance ,"Communications, Consultation and Information Team",BTR20,Publicity & Marketing,0377,837.71,Johnston Publishing Ltd,107468,12/07/2012,10170009
Resources & Corporate Governance ,"Communications, Consultation and Information Team",BTR20,Publicity & Marketing,0377,530.19,Johnston Publishing Ltd,107468,20/07/2012,10170357
Resources & Corporate Governance ,"Communications, Consultation and Information Team",BTR20,Publicity & Marketing,0377,494.19,Johnston Publishing Ltd,107468,26/07/2012,10170702
Resources & Corporate Governance ,"Communications, Consultation and Information Team",BTR20,Publicity & Marketing,0377,450.00,Johnston Publishing Ltd,107468,26/07/2012,10170703
Resources & Corporate Governance,Corporate Property R&M,CPA01,R&M External Contractors,0100,436.80,WB Power Services Ltd,108048,26/07/2012,10170708
Resources & Corporate Governance ,General Financial Services,GFS00,External Contractor & Operator,0742,1875.00,Sterling International Brokers Ltd,108141,05/07/2012,10169992
Resources & Corporate Governance ,Central Telephone Service,TEL00,Telephone Expenses,0371,684.92,British Telecommunications PLC,108425,26/07/2012,10170851
Economy Development & Culture,Economic Development General,ECD00,Development Activities,0450,450.00,HIGHWAY TRAFFIC MANAGEMENT,109404,26/07/2012,10170864
Economy Development & Culture,Town Centre Public Conveniences,PCS00,Contract Cleaning,0170,1007.50,1ST CLASS HYGIENE LTD,110029,05/07/2012,10169384
Resources & Corporate Governance ,WSU Depot,WDP00,Messing Facilities,0332,613.00,1ST CLASS HYGIENE LTD,110029,05/07/2012,10169385
Resources & Corporate Governance ,Garage Internal,WVR01,Materials,0303,32386.08,Watson Petroleum,110361,12/07/2012,10170112
Economy Development & Culture,Visitor Centre,VSC00,R&M External Contractors,0100,1000.00,Graham Ibbeson Sculpture Ltd,111295,26/07/2012,10170955
Sustainable Environment ,Caldecott Park/Town Centre Area,PKS00,R&M External Contractors,0100,500.00,P D Timms,111508,12/07/2012,10170251
Housing Revenue Account ,Unplanned Maintenance and Repair,UMR00,R&M External Contractors,0100,1450.00,Dampco,111839,20/07/2012,10170297
Housing Revenue Account ,Unplanned Maintenance and Repair,UMR00,R&M External Contractors,0100,1356.00,Dampco,111839,20/07/2012,10170298
Resources & Corporate Governance ,Grounds Maintenance,WGM00,External Contractor & Operator,0742,702.00,Mark Smithers,112612,12/07/2012,10170261
Resources & Corporate Governance ,Grounds Maintenance,WGM00,External Contractor & Operator,0742,598.00,Mark Smithers,112612,12/07/2012,10170262
Resources & Corporate Governance ,Grounds Maintenance,WGM00,External Contractor & Operator,0742,3443.87,Mark Smithers,112612,12/07/2012,10170263
Resources & Corporate Governance ,Maintenance of Customer Services Systems,CIS21,Software Maintenance,0374,3934.96,Civica UK Ltd,112724,12/07/2012,10170092
Resources & Corporate Governance ,Maintenance of Customer Services Systems,CIS21,Software Maintenance,0374,9971.73,Civica UK Ltd,112724,20/07/2012,10170093
Resources & Corporate Governance ,Maintenance of Customer Services Systems,CIS21,Software Maintenance,0374,7830.53,Civica UK Ltd,112724,20/07/2012,10170094
Resources & Corporate Governance ,Maintenance of Customer Services Systems,CIS21,Software Purchase,0373,780.00,DataNovata - see supp 148083,112731,05/07/2012,10169314
Resources & Corporate Governance ,Maintenance of Customer Services Systems,CIS21,Software Maintenance,0374,780.00,DataNovata - see supp 148083,112731,12/07/2012,10169979
Housing Revenue Account ,Unplanned Maintenance and Repair,UMR00,R&M External Contractors,0100,2022.50,Norfolk Frames Ltd (In Administration),112863,20/07/2012,10166828
Resources & Corporate Governance ,Domestic Waste Collection,WWC00,Agency Staff,0003,779.57,Extra Personnel Limited,112996,05/07/2012,10169400
Resources & Corporate Governance ,Domestic Waste Collection,WWC00,Agency Staff,0003,1231.57,Extra Personnel Limited,112996,05/07/2012,10169632
Resources & Corporate Governance ,Domestic Waste Collection,WWC00,Agency Staff,0003,508.37,Extra Personnel Limited,112996,12/07/2012,10170121
Resources & Corporate Governance ,Domestic Waste Collection,WWC00,Agency Staff,0003,598.77,Extra Personnel Limited,112996,20/07/2012,10170429
Resources & Corporate Governance ,Domestic Waste Collection,WWC00,Agency Staff,0003,508.37,Extra Personnel Limited,112996,26/07/2012,10170773
Resources & Corporate Governance ,TREE WORKS,WGM01,External Contractor & Operator,0742,1202.34,Acorn Environmental Management Group Ltd,113313,20/07/2012,10170448
Resources & Corporate Governance ,Legal Services,DEM20,Ref. Books Journals & Magazines,0353,552.90,Lexis Nexis Butterworths,114132,20/07/2012,10169788
Resources & Corporate Governance ,Maintenance of Customer Services Systems,CIS21,Software Maintenance,0374,11278.00,ROL Solutions Ltd,114441,12/07/2012,10170335
Economy Development & Culture,Ken Marriott Leisure Centre,KML00,External Contractor & Operator,0742,25181.06,DC Leisure Management Ltd (Otium),114443,12/07/2012,10170091
Housing Revenue Account ,Control Centre (HRA),CCE00,New Equipment,0300,81.00,Star Technology Services,114533,26/07/2012,10170097
Economy Development & Culture,Car Parks General,CPK01,New Equipment,0300,16.20,Star Technology Services,114533,26/07/2012,10170097
Economy Development & Culture,Decrim. of Car Parking on street parking,DPE02,New Equipment,0300,64.80,Star Technology Services,114533,26/07/2012,10170097
Economy Development & Culture,Art Gallery and Museum,AGM00,Maintenance of Equipment,0301,81.00,Star Technology Services,114533,26/07/2012,10170097
Economy Development & Culture,Art Gallery and Museum,AGM00,Telephone Expenses,0371,511.08,Star Technology Services,114533,26/07/2012,10170097
Resources & Corporate Governance ,Customer and Information Strategy,CIS10,Telephone Expenses,0371,2242.20,Star Technology Services,114533,26/07/2012,10170097
Resources & Corporate Governance ,Council Tax and NNDR Collection,CTX01,Telephone Expenses,0371,81.00,Star Technology Services,114533,26/07/2012,10170097
Economy Development & Culture,Visitor Centre,VSC00,Telephone Expenses,0371,511.08,Star Technology Services,114533,26/07/2012,10170097
Resources & Corporate Governance ,WSU Depot,WDP00,Telephone Expenses,0371,81.00,Star Technology Services,114533,26/07/2012,10170097
Resources & Corporate Governance ,Customer and Information Strategy,CIS10,Hardware Maintenance,0376,81.00,Star Technology Services,114533,26/07/2012,10170097
Resources & Corporate Governance ,Customer and Information Strategy,CIS10,Telephone Expenses,0371,-1491.38,Star Technology Services,114533,26/07/2012,10170754
Housing Revenue Account ,Unplanned Maintenance and Repair,UMR00,R&M External Contractors,0100,1341.40,Temple Lifts Ltd,114738,05/07/2012,10169998
Sustainable Environment ,Cemeteries General,CEM00,External Contractor & Operator,0742,1096.00,Streetmaster (South Wales) Ltd,114898,12/07/2012,10169231
Sustainable Environment ,Cemeteries General,CEM00,Purchases for Resale,0305,586.00,Streetmaster (South Wales) Ltd,114898,12/07/2012,10170255
Economy Development & Culture,Street Furniture,HIG01,External Contractor & Operator,0742,450.00,Lushglen,117749,05/07/2012,10169802
Sustainable Environment ,Caldecott Park/Town Centre Area,PKS00,External Contractor & Operator,0742,1145.00,Lushglen,117749,20/07/2012,10169850
Capital Program ,Purchase of Vehicles,VHC00,Miscellaneous Capital Expenditure,5020,109059.00,Farid Municipal Vehicles Limited,118309,12/07/2012,10170174
Economy Development & Culture,Art Gallery and Museum,AGM00,Electricity,0130,3264.48,Southern Electric,118976,20/07/2012,10170394
Resources & Corporate Governance,Corporate Property Central Utilities,CPA02,Electricity,0130,3313.69,Southern Electric,118976,20/07/2012,10170394
Sustainable Environment ,Caldecott Park/Town Centre Area,PKS00,R&M External Contractors,0100,4000.00,G James,119538,05/07/2012,10168843
Resources & Corporate Governance ,Street Cleansing,WSC00,Agency Staff,0003,436.24,Taskforce Recruitment Ltd,119614,05/07/2012,10169408
Resources & Corporate Governance,Handy man,WHM00,Agency Staff,0003,241.90,G-Staff Ltd,120173,05/07/2012,10169864
Resources & Corporate Governance ,Domestic Waste Collection,WWC00,Agency Staff,0003,1442.07,G-Staff Ltd,120173,05/07/2012,10169864
Resources & Corporate Governance,Handy man,WHM00,Agency Staff,0003,303.40,G-Staff Ltd,120173,12/07/2012,10170004
Resources & Corporate Governance ,Street Cleansing,WSC00,Agency Staff,0003,610.79,G-Staff Ltd,120173,12/07/2012,10170004
Resources & Corporate Governance ,Domestic Waste Collection,WWC00,Agency Staff,0003,610.69,G-Staff Ltd,120173,12/07/2012,10170004
Resources & Corporate Governance ,Civic Responsibilities,CIV00,Training fees,0011,1034.59,Nelson Training,120218,20/07/2012,10170514
Sustainable Inclusive Communities,Housing Options Team,HOT00,Agency Staff,0003,529.69,Venn Group Recruitment Solutions,121594,05/07/2012,10169054
Sustainable Inclusive Communities,Housing Options Team,HOT00,Agency Staff,0003,852.11,Venn Group Recruitment Solutions,121594,05/07/2012,10169339
Capital Program ,Housing Management System,HCE08,IT Capital Expenditure,5025,23750.00,Northgate Information Solutions UK Ltd,121606,05/07/2012,10167208
Resources & Corporate Governance ,Maintenance of Customer Services Systems,CIS21,Software Purchase,0373,1000.00,Northgate Information Solutions UK Ltd,121606,05/07/2012,10169872
Resources & Corporate Governance ,IT Procurement,CMP00,IT Capital Expenditure,5025,950.00,Northgate Information Solutions UK Ltd,121606,26/07/2012,10169874
Resources & Corporate Governance ,Maintenance of Customer Services Systems,CIS21,Software Maintenance,0374,7163.00,Northgate Information Solutions UK Ltd,121606,26/07/2012,10170942
Resources & Corporate Governance ,Maintenance of Customer Services Systems,CIS21,Software Maintenance,0374,9791.99,Northgate Information Solutions UK Ltd,121606,26/07/2012,10170943
,Balance Sheet,BS,Car Loan Scheme,9261,10750.00,REDACTED PERSONAL DATA,121659,12/07/2012,10170210
Housing Revenue Account ,Maintenance of Open Spaces,MOS00,External Contractor & Operator,0742,1383.32,Brinklow Quarry,122921,20/07/2012,10170353
Resources & Corporate Governance ,Highways,WHG00,External Contractor & Operator,0742,22.02,Brinklow Quarry,122921,20/07/2012,10170353
Resources & Corporate Governance ,Grounds Maintenance,WGM00,External Contractor & Operator,0742,945.00,Tayside Amenity Sprayers Limited,122930,20/07/2012,10170417
Resources & Corporate Governance ,Central Telephone Service,TEL00,Telephone Expenses,0371,984.83,Cable & Wireless,123224,12/07/2012,10170146
Resources & Corporate Governance ,Customer and Information Strategy,CIS10,Hardware Maintenance,0376,2759.95,Cable & Wireless,123224,26/07/2012,10170849
Resources & Corporate Governance ,"Communications, Consultation and Information Team",BTR20,Publicity & Marketing,0377,672.00,Krishna Enterprises Ltd,123590,05/07/2012,10169564
Economy Development & Culture,Visitor Centre,VSC00,Purchases for Resale,0305,975.00,Krishna Enterprises Ltd,123590,26/07/2012,10170835
Capital Program ,Great Central Walk Bridge,LEI14,Capital Contract Payments,5000,905.74,Carillion Highway Maintenance Limited,123762,05/07/2012,10169614
,Balance Sheet,BS,Car Loan Scheme,9261,7125.00,REDACTED PERSONAL DATA,124636,20/07/2012,10170531
Sustainable Inclusive Communities,CL Grants,CGS00,Grants To Voluntary Organisations,0720,1940.00,Warwickshire Clubs For Young People,124771,26/07/2012,10170792
Resources & Corporate Governance ,Garage Internal,WVR01,Materials,0303,507.03,Shell U.K. Oil Products Limited,125672,05/07/2012,10169879
Resources & Corporate Governance ,Grounds Maintenance,WGM00,Tools,0304,710.66,Garden Machines Northampton Ltd,126080,05/07/2012,10169468
Resources & Corporate Governance ,Corporate Property Management,CPM00,External Legal Costs,0741,5148.00,Eversheds,126086,12/07/2012,10167308
Sustainable Environment,Regulatory Services,REG00,Software/Equipment Licences,0379,1028.28,Airwave Solutions Limited,126436,26/07/2012,10170790
Economy Development & Culture,Economic Development General,ECD00,Borough Local Plan,0452,1000.00,George and Company (Surveyors) Ltd,126668,26/07/2012,10170776
,User Balance Sheet Cost Centre,BSU,Section Agreements,9865,2916.00,BTCV,127323,12/07/2012,10170195
Sustainable Environment ,Caldecott Park/Town Centre Area,PKS00,External Contractor & Operator,0742,2600.00,Wappenbury Hall Nurseries,128807,05/07/2012,10169414
Resources & Corporate Governance ,Domestic Waste Collection,WWC00,Vehicle Repair and Maintenance,0200,337.85,ABS Limited,129026,12/07/2012,10170219
Resources & Corporate Governance ,Trade Waste Collection,WWC01,Vehicle Repair and Maintenance,0200,202.71,ABS Limited,129026,12/07/2012,10170219
Resources & Corporate Governance,Handy man,WHM00,External Contractor & Operator,0742,679.10,M P Hudson & Son,129334,05/07/2012,10169877
Resources & Corporate Governance,Handy man,WHM00,External Contractor & Operator,0742,427.50,M P Hudson & Son,129334,12/07/2012,10170312
Resources & Corporate Governance,Handy man,WHM00,External Contractor & Operator,0742,770.00,M P Hudson & Son,129334,20/07/2012,10170581
Resources & Corporate Governance,Handy man,WHM00,External Contractor & Operator,0742,625.00,M P Hudson & Son,129334,26/07/2012,10170854
Resources & Corporate Governance,Central Business Support Services,CSS15,New Equipment,0300,13.56,Lyreco,129956,12/07/2012,10170016
Resources & Corporate Governance,Central Business Support Services,CSS15,Stationery Supplies,0350,480.18,Lyreco,129956,12/07/2012,10170016
Resources & Corporate Governance ,Land Charges,LCH00,Maintenance of Equipment,0301,549.54,Lyreco,129956,12/07/2012,10170017
Sustainable Inclusive Communities,Woodside Park,TVR00,External Contractor & Operator,0742,2640.00,Rugby First Limited - Town Centre,130214,20/07/2012,10170433
Capital Program ,Queen's Diamond Jubilee Leisure Centre Project,LEI03,Capital Contract Payments,5000,1786.00,I D Welding & Fabrications,131407,12/07/2012,10169290
Sustainable Environment ,Caldecott Park/Town Centre Area,PKS00,External Contractor & Operator,0742,500.00,I D Welding & Fabrications,131407,12/07/2012,10170077
Economy Development & Culture,Car Parks General,CPK01,Cash Collection,0744,997.36,Jade Security Services Ltd,131711,12/07/2012,10170125
Economy Development & Culture,Car Parks General,CPK01,Cash Collection,0744,118.37,Jade Security Services Ltd,131711,12/07/2012,10170126
Economy Development & Culture,Decrim. of Car Parking on street parking,DPE02,Cash Collection,0744,473.47,Jade Security Services Ltd,131711,12/07/2012,10170126
Capital Program ,RG Disabled Facilities,REN01,Capital Grants,5014,7201.75,D K Builders,131946,26/07/2012,10170800
Housing Revenue Account ,Unplanned Maintenance and Repair,UMR00,R&M External Contractors,0100,500.73,Wilson Electrics,132051,05/07/2012,10169994
Economy Development & Culture,Car Parks General,CPK01,Other Agencies,0734,211.80,Chipside Limited,133289,12/07/2012,10170083
Economy Development & Culture,Decrim. of Car Parking on street parking,DPE02,Other Agencies,0734,847.20,Chipside Limited,133289,12/07/2012,10170083
Resources & Corporate Governance ,Highways,WHG00,Materials,0303,791.28,Breedon Aggregates England Limited,133309,12/07/2012,10170347
Resources & Corporate Governance,Housing Drainage,WDR00,Vehicle Repair and Maintenance,0200,514.33,Bryco Group Ltd,133311,12/07/2012,10170019
Resources & Corporate Governance,Handy man,WHM00,External Contractor & Operator,0742,860.00,Homecare Decorating,133884,12/07/2012,10168450
Resources & Corporate Governance,Handy man,WHM00,External Contractor & Operator,0742,949.00,Homecare Decorating,133884,20/07/2012,10170630
Resources & Corporate Governance,Handy man,WHM00,External Contractor & Operator,0742,654.00,Homecare Decorating,133884,26/07/2012,10170631
Resources & Corporate Governance,Handy man,WHM00,External Contractor & Operator,0742,899.00,Homecare Decorating,133884,26/07/2012,10170633
Resources & Corporate Governance,Handy man,WHM00,External Contractor & Operator,0742,1049.00,Homecare Decorating,133884,26/07/2012,10170634
Resources & Corporate Governance,Handy man,WHM00,External Contractor & Operator,0742,1053.00,Homecare Decorating,133884,20/07/2012,10170635
Resources & Corporate Governance,Handy man,WHM00,External Contractor & Operator,0742,788.00,Homecare Decorating,133884,20/07/2012,10170637
Resources & Corporate Governance,Handy man,WHM00,External Contractor & Operator,0742,881.00,Homecare Decorating,133884,20/07/2012,10170638
Resources & Corporate Governance,Handy man,WHM00,External Contractor & Operator,0742,1300.00,Homecare Decorating,133884,20/07/2012,10170639
Sustainable Inclusive Communities,Woodside Park,TVR00,R&M External Contractors,0100,18.55,Delec Ltd,133887,05/07/2012,10169666
Housing Revenue Account ,Unplanned Maintenance and Repair,UMR00,R&M External Contractors,0100,2347.15,Delec Ltd,133887,05/07/2012,10169666
Housing Revenue Account ,Unplanned Maintenance and Repair,UMR00,R&M External Contractors,0100,3227.13,Delec Ltd,133887,12/07/2012,10170144
Housing Revenue Account ,Unplanned Maintenance and Repair,UMR00,R&M External Contractors,0100,2524.85,Delec Ltd,133887,12/07/2012,10170326
Housing Revenue Account ,Unplanned Maintenance and Repair,UMR00,R&M External Contractors,0100,421.49,Delec Ltd,133887,20/07/2012,10170626
Resources & Corporate Governance ,Human Resources Centralised Services,RES31,Eye Tests & Glasses Contributions,0015,850.00,Specsavers Optical Superstores,134897,26/07/2012,10170805
Housing Revenue Account ,Avon Court AP,AGP02,Electricity,0130,510.27,Southern Electric,135653,26/07/2012,10170763
Housing Revenue Account ,Dickinson Court AP,AGP03,Electricity,0130,553.93,Southern Electric,135653,26/07/2012,10170763
Housing Revenue Account ,Duffy Place AP,AGP04,Electricity,0130,610.44,Southern Electric,135653,26/07/2012,10170763
Housing Revenue Account ,Frederick Press Way AP,AGP06,Electricity,0130,970.05,Southern Electric,135653,26/07/2012,10170763
Housing Revenue Account ,Mercer Court AP,AGP09,Electricity,0130,597.75,Southern Electric,135653,26/07/2012,10170763
Housing Revenue Account ,Pettiver Crescent I AP,AGP10,Electricity,0130,747.13,Southern Electric,135653,26/07/2012,10170763
Housing Revenue Account ,Robotham Close AP,AGP11,Electricity,0130,543.37,Southern Electric,135653,26/07/2012,10170763
Housing Revenue Account ,Stacey Court AP,AGP12,Electricity,0130,227.83,Southern Electric,135653,26/07/2012,10170763
Housing Revenue Account ,Sun Street/Windsor Street AP,AGP14,Electricity,0130,668.44,Southern Electric,135653,26/07/2012,10170763
Housing Revenue Account ,Lesley Souter House AP,AGP16,Electricity,0130,1246.24,Southern Electric,135653,26/07/2012,10170763
Housing Revenue Account ,Edward Court AP,AGP19,Electricity,0130,652.05,Southern Electric,135653,26/07/2012,10170763
Housing Revenue Account ,Albert Square AP,AGP20,Electricity,0130,106.85,Southern Electric,135653,26/07/2012,10170763
Housing Revenue Account ,Clare Court Site,AGP27,Electricity,0130,87.03,Southern Electric,135653,26/07/2012,10170763
Housing Revenue Account ,Alexandra/James Court AP,AGP30,Electricity,0130,1018.28,Southern Electric,135653,26/07/2012,10170763
Housing Revenue Account ,Bennett Court/Warwick Road AP,AGP38,Electricity,0130,24.51,Southern Electric,135653,26/07/2012,10170763
Housing Revenue Account ,Clifton Road AP,AGP41,Electricity,0130,74.45,Southern Electric,135653,26/07/2012,10170763
Housing Revenue Account ,Featherbed Lane I AP,AGP45,Electricity,0130,486.73,Southern Electric,135653,26/07/2012,10170763
Housing Revenue Account ,Fox Close AP,AGP47,Electricity,0130,94.38,Southern Electric,135653,26/07/2012,10170763
Housing Revenue Account ,Great Balance Brinklow AP,AGP48,Electricity,0130,14.98,Southern Electric,135653,26/07/2012,10170763
Housing Revenue Account ,Jackson Road I AP,AGP53,Electricity,0130,53.99,Southern Electric,135653,26/07/2012,10170763
Housing Revenue Account ,Lever Road I AP,AGP57,Electricity,0130,654.95,Southern Electric,135653,26/07/2012,10170763
Housing Revenue Account ,Norman Road AP,AGP60,Electricity,0130,94.18,Southern Electric,135653,26/07/2012,10170763
Housing Revenue Account ,The Kent AP,AGP67,Electricity,0130,95.30,Southern Electric,135653,26/07/2012,10170763
Housing Revenue Account ,Victoria Street/Lawford Road AP,AGP68,Electricity,0130,33.97,Southern Electric,135653,26/07/2012,10170763
Housing Revenue Account ,Parkfield Road/Lea Crescent AP,AGP71,Electricity,0130,45.46,Southern Electric,135653,26/07/2012,10170763
Housing Revenue Account ,Pennington Street/Round Street AP,AGP72,Electricity,0130,336.95,Southern Electric,135653,26/07/2012,10170763
Housing Revenue Account ,Control Centre CCTV,CCE01,Electricity,0130,1817.88,Southern Electric,135653,26/07/2012,10170763
Housing Revenue Account ,Supervision and Management General,MAN00,Electricity,0130,-1368.23,Southern Electric,135653,26/07/2012,10170763
Housing Revenue Account ,Multi-Storey Flats,MSF00,Electricity,0130,6471.85,Southern Electric,135653,26/07/2012,10170763
Sustainable Inclusive Communities,Woodside Park,TVR00,Electricity,0130,119.79,Southern Electric,135653,26/07/2012,10170763
Resources & Corporate Governance ,IT Procurement,CMP00,IT Capital Expenditure,5025,16184.00,Switchshop Limited,136328,12/07/2012,10170010
Resources & Corporate Governance ,Council Tax and NNDR Collection,CTX01,External Legal Costs,0741,2500.00,Summers Nigh Law,136330,12/07/2012,10169629
Resources & Corporate Governance ,Council Tax and NNDR Collection,CTX01,External Legal Costs,0741,496.00,Summers Nigh Law,136330,12/07/2012,10169833
Sustainable Environment ,Anti-Social Behaviour,CAD02,Development Activities,0450,1001.00,Solon Security Ltd,137493,26/07/2012,10170379
Resources & Corporate Governance ,Street Cleansing,WSC00,Materials,0303,1219.70,Danline International Ltd,137588,26/07/2012,10170651
Sustainable Inclusive Communities,CL Grants,CGS00,Grants To Voluntary Organisations,0720,5000.00,The Bradby Club,138171,12/07/2012,10169780
Housing Revenue Account ,Sheltered Housing,AGP00,Contract Cleaning,0170,14297.47,Regent Office Care Ltd T/A Regent Cleaning,138934,05/07/2012,10168829
Sustainable Inclusive Communities,Housing Options Team,HOT00,Contract Cleaning,0170,134.76,Regent Office Care Ltd T/A Regent Cleaning,138934,05/07/2012,10168829
Housing Revenue Account ,Estate Management,MAN22,Contract Cleaning,0170,3078.90,Regent Office Care Ltd T/A Regent Cleaning,138934,05/07/2012,10168829
Housing Revenue Account ,Multi-Storey Flats,MSF00,Contract Cleaning,0170,1731.90,Regent Office Care Ltd T/A Regent Cleaning,138934,05/07/2012,10168829
Resources & Corporate Governance ,Town Hall,OFF00,Contract Cleaning,0170,4280.55,Regent Office Care Ltd T/A Regent Cleaning,138934,12/07/2012,10170197
Resources & Corporate Governance ,WSU Depot,WDP00,Contract Cleaning,0170,219.00,Regent Office Care Ltd T/A Regent Cleaning,138934,12/07/2012,10170197
Resources & Corporate Governance ,Grounds Maintenance,WGM00,Contract Cleaning,0170,147.50,Regent Office Care Ltd T/A Regent Cleaning,138934,12/07/2012,10170197
Housing Revenue Account ,Sheltered Housing,AGP00,Contract Cleaning,0170,14297.47,Regent Office Care Ltd T/A Regent Cleaning,138934,26/07/2012,10170198
Sustainable Inclusive Communities,Housing Options Team,HOT00,Contract Cleaning,0170,134.76,Regent Office Care Ltd T/A Regent Cleaning,138934,26/07/2012,10170198
Housing Revenue Account ,Estate Management,MAN22,Contract Cleaning,0170,3078.90,Regent Office Care Ltd T/A Regent Cleaning,138934,26/07/2012,10170198
Housing Revenue Account ,Multi-Storey Flats,MSF00,Contract Cleaning,0170,1731.90,Regent Office Care Ltd T/A Regent Cleaning,138934,26/07/2012,10170198
Housing Revenue Account ,Unplanned Maintenance and Repair,UMR00,R&M External Contractors,0100,2296.54,Regent Office Care Ltd T/A Regent Cleaning,138934,12/07/2012,10170324
Housing Revenue Account ,Unplanned Maintenance and Repair,UMR00,R&M External Contractors,0100,1123.58,Regent Office Care Ltd T/A Regent Cleaning,138934,12/07/2012,10170327
Capital Program ,Kitchen Modifications,HIK10,Capital Contract Payments,5000,650.00,Rider Levett Bucknall UK Ltd,139918,12/07/2012,10170140
Capital Program ,Heating Upgrades,HIM01,Capital Contract Payments,5000,780.00,Rider Levett Bucknall UK Ltd,139918,12/07/2012,10170140
Capital Program ,Electric to Gas Conversions,HIM04,Capital Contract Payments,5000,520.00,Rider Levett Bucknall UK Ltd,139918,12/07/2012,10170140
Capital Program ,Bathroom Modifications,HIS01,Capital Contract Payments,5000,10400.00,Rider Levett Bucknall UK Ltd,139918,12/07/2012,10170140
Housing Revenue Account ,Asbestos Surveys,UMR05,R&M External Contractors,0100,910.00,Rider Levett Bucknall UK Ltd,139918,12/07/2012,10170323
Housing Revenue Account ,Property Maintenance,MAN23,External Contractor & Operator,0742,130.00,Rider Levett Bucknall UK Ltd,139918,12/07/2012,10170323
Capital Program ,Kitchen Modifications,HIK10,Capital Contract Payments,5000,5460.00,Rider Levett Bucknall UK Ltd,139918,12/07/2012,10170323
Capital Program ,Heating Upgrades,HIM01,Capital Contract Payments,5000,130.00,Rider Levett Bucknall UK Ltd,139918,12/07/2012,10170323
Capital Program ,Electric to Gas Conversions,HIM04,Capital Contract Payments,5000,130.00,Rider Levett Bucknall UK Ltd,139918,12/07/2012,10170323
Capital Program ,Bathroom Modifications,HIS01,Capital Contract Payments,5000,6890.00,Rider Levett Bucknall UK Ltd,139918,12/07/2012,10170323
Housing Revenue Account ,Asbestos Surveys,UMR05,R&M External Contractors,0100,780.00,Rider Levett Bucknall UK Ltd,139918,26/07/2012,10170952
Capital Program ,Kitchen Modifications,HIK10,Capital Contract Payments,5000,1430.00,Rider Levett Bucknall UK Ltd,139918,26/07/2012,10170952
Capital Program ,Heating Upgrades,HIM01,Capital Contract Payments,5000,260.00,Rider Levett Bucknall UK Ltd,139918,26/07/2012,10170952
Capital Program ,Electric to Gas Conversions,HIM04,Capital Contract Payments,5000,780.00,Rider Levett Bucknall UK Ltd,139918,26/07/2012,10170952
Capital Program ,Bathroom Modifications,HIS01,Capital Contract Payments,5000,2860.00,Rider Levett Bucknall UK Ltd,139918,26/07/2012,10170952
Resources & Corporate Governance ,Garage Internal,WVR01,Materials,0303,-596.70,Midlands Truck & Van Ltd,140322,12/07/2012,10169868
Resources & Corporate Governance ,Garage Internal,WVR01,Materials,0303,596.70,Midlands Truck & Van Ltd,140322,12/07/2012,10169870
Resources & Corporate Governance ,Domestic Waste Collection,WWC00,Vehicle Repair and Maintenance,0200,471.93,Midlands Truck & Van Ltd,140322,12/07/2012,10170177
Resources & Corporate Governance ,"Communications, Consultation and Information Team",BTR20,Publicity & Marketing,0377,2069.94,Siteimprove Ltd,140753,12/07/2012,10170193
Sustainable Environment ,Caldecott Park/Town Centre Area,PKS00,External Contractor & Operator,0742,429.60,StoneWall Security Ltd,140775,12/07/2012,10170089
Housing Revenue Account ,Unplanned Maintenance and Repair,UMR00,R&M External Contractors,0100,45.77,Carpenter Surveyors Ltd,141374,05/07/2012,10169993
Housing Revenue Account ,Property Maintenance,MAN23,External Contractor & Operator,0742,434.95,Carpenter Surveyors Ltd,141374,05/07/2012,10169993
Resources & Corporate Governance ,Customer and Information Strategy,CIS10,Telephone Expenses,0371,793.16,Zen Internet Ltd,141612,20/07/2012,10170611
Resources & Corporate Governance ,Customer and Information Strategy,CIS10,Hardware Maintenance,0376,590.85,Comodo CA Ltd,143874,20/07/2012,10170020
Economy Development & Culture,Positive Futures,LSD04,Development Activities,0450,877.95,Teamworks Karting Ltd,143909,20/07/2012,10169555
Sustainable Environment ,Violence,CAD01,Development Activities,0450,630.00,The Professional Promotion Co Ltd,144136,12/07/2012,10169164
Resources & Corporate Governance ,Land Charges,LCH00,External Legal Costs,0741,850.30,Local Government Association,144471,20/07/2012,10168174
Housing Revenue Account ,Property Maintenance,MAN23,Agency Staff,0003,1248.97,James Andrews Recruitment Solutions Ltd,145100,05/07/2012,10169991
Sustainable Inclusive Communities,Housing Strategy & Enabling,HSE00,Agency Staff,0003,500.51,James Andrews Recruitment Solutions Ltd,145100,12/07/2012,10170271
Sustainable Inclusive Communities,Housing Strategy & Enabling,HSE00,Agency Staff,0003,590.76,James Andrews Recruitment Solutions Ltd,145100,12/07/2012,10170272
Sustainable Inclusive Communities,Housing Strategy & Enabling,HSE00,Agency Staff,0003,607.17,James Andrews Recruitment Solutions Ltd,145100,12/07/2012,10170276
Sustainable Inclusive Communities,Housing Strategy & Enabling,HSE00,Agency Staff,0003,607.17,James Andrews Recruitment Solutions Ltd,145100,12/07/2012,10170277
Sustainable Inclusive Communities,Housing Strategy & Enabling,HSE00,Agency Staff,0003,500.51,James Andrews Recruitment Solutions Ltd,145100,12/07/2012,10170299
Housing Revenue Account ,Property Maintenance,MAN23,Agency Staff,0003,847.80,James Andrews Recruitment Solutions Ltd,145100,20/07/2012,10170307
Housing Revenue Account ,Property Maintenance,MAN23,Agency Staff,0003,964.10,James Andrews Recruitment Solutions Ltd,145100,20/07/2012,10170308
Housing Revenue Account ,Property Maintenance,MAN23,Agency Staff,0003,1023.72,James Andrews Recruitment Solutions Ltd,145100,20/07/2012,10170309
Housing Revenue Account ,Property Maintenance,MAN23,Agency Staff,0003,1259.10,James Andrews Recruitment Solutions Ltd,145100,20/07/2012,10170554
Housing Revenue Account ,Property Maintenance,MAN23,Agency Staff,0003,1073.00,James Andrews Recruitment Solutions Ltd,145100,20/07/2012,10170555
Sustainable Inclusive Communities,Housing Strategy & Enabling,HSE00,Agency Staff,0003,615.38,James Andrews Recruitment Solutions Ltd,145100,26/07/2012,10170585
Housing Revenue Account ,Property Maintenance,MAN23,Agency Staff,0003,1160.00,James Andrews Recruitment Solutions Ltd,145100,26/07/2012,10170906
Housing Revenue Account ,Property Maintenance,MAN23,Agency Staff,0003,1111.27,James Andrews Recruitment Solutions Ltd,145100,26/07/2012,10170907
Resources & Corporate Governance ,Street Cleansing,WSC00,Agency Staff,0003,145.00,Blue Arrow Limited,145492,20/07/2012,10167850
Resources & Corporate Governance ,Domestic Waste Collection,WWC00,Agency Staff,0003,450.00,Blue Arrow Limited,145492,20/07/2012,10167850
Resources & Corporate Governance ,Street Cleansing,WSC00,Agency Staff,0003,539.16,Blue Arrow Limited,145492,20/07/2012,10169409
Resources & Corporate Governance ,Domestic Waste Collection,WWC00,Agency Staff,0003,413.39,Blue Arrow Limited,145492,20/07/2012,10169409
Resources & Corporate Governance ,Street Cleansing,WSC00,Agency Staff,0003,445.00,Blue Arrow Limited,145492,20/07/2012,10169591
Resources & Corporate Governance ,Domestic Waste Collection,WWC00,Agency Staff,0003,75.00,Blue Arrow Limited,145492,20/07/2012,10169591
Resources & Corporate Governance ,Street Cleansing,WSC00,Agency Staff,0003,699.67,Blue Arrow Limited,145492,05/07/2012,10169592
Resources & Corporate Governance ,Street Cleansing,WSC00,Agency Staff,0003,-578.68,Blue Arrow Limited,145492,05/07/2012,10169593
Resources & Corporate Governance ,Street Cleansing,WSC00,Agency Staff,0003,445.00,Blue Arrow Limited,145492,12/07/2012,10170211
Resources & Corporate Governance ,Domestic Waste Collection,WWC00,Agency Staff,0003,354.33,Blue Arrow Limited,145492,12/07/2012,10170211
Resources & Corporate Governance ,Street Cleansing,WSC00,Agency Staff,0003,145.00,Blue Arrow Limited,145492,20/07/2012,10170212
Resources & Corporate Governance ,Domestic Waste Collection,WWC00,Agency Staff,0003,458.18,Blue Arrow Limited,145492,20/07/2012,10170212
Resources & Corporate Governance ,Street Cleansing,WSC00,Agency Staff,0003,445.00,Blue Arrow Limited,145492,20/07/2012,10170213
Resources & Corporate Governance ,Domestic Waste Collection,WWC00,Agency Staff,0003,83.18,Blue Arrow Limited,145492,20/07/2012,10170213
Resources & Corporate Governance ,Street Cleansing,WSC00,Agency Staff,0003,670.00,Blue Arrow Limited,145492,12/07/2012,10170214
Resources & Corporate Governance ,Street Cleansing,WSC00,Agency Staff,0003,539.16,Blue Arrow Limited,145492,20/07/2012,10170226
Resources & Corporate Governance ,Domestic Waste Collection,WWC00,Agency Staff,0003,446.09,Blue Arrow Limited,145492,20/07/2012,10170226
Resources & Corporate Governance ,Street Cleansing,WSC00,Agency Staff,0003,-539.16,Blue Arrow Limited,145492,20/07/2012,10170365
Resources & Corporate Governance ,Domestic Waste Collection,WWC00,Agency Staff,0003,-413.39,Blue Arrow Limited,145492,20/07/2012,10170365
Resources & Corporate Governance ,Street Cleansing,WSC00,Agency Staff,0003,-445.00,Blue Arrow Limited,145492,20/07/2012,10170366
Resources & Corporate Governance ,Domestic Waste Collection,WWC00,Agency Staff,0003,-75.00,Blue Arrow Limited,145492,20/07/2012,10170366
Resources & Corporate Governance ,Street Cleansing,WSC00,Agency Staff,0003,-145.00,Blue Arrow Limited,145492,20/07/2012,10170367
Resources & Corporate Governance ,Domestic Waste Collection,WWC00,Agency Staff,0003,-450.00,Blue Arrow Limited,145492,20/07/2012,10170367
Economy Development & Culture,AGM Education,AGM03,Other Miscellaneous Expenses,0444,678.00,Stereographic Ltd,145779,20/07/2012,10170501
Resources & Corporate Governance ,Highways,WHG00,Materials,0303,470.92,Midland Rock Leicester Ltd,145830,12/07/2012,10170183
Capital Program ,Open Spaces Refurbishment,LEI08,Capital Contract Payments,5000,12050.00,Larkin Engineering Enterprises LtdT/A Larkin Street Products,146442,12/07/2012,10169095
Resources & Corporate Governance,Corporate Property R&M,CPA01,R&M External Contractors,0100,450.52,Stanair Industrial Services Ltd,146499,20/07/2012,10169407
Resources & Corporate Governance,Handy man,WHM00,Materials,0303,486.27,Sapphire Glass Merchants,146549,12/07/2012,10168550
Sustainable Inclusive Communities,CL Grants,CGS00,Grants To Voluntary Organisations,0720,5000.00,Guy's Gift,146627,26/07/2012,10170512
Sustainable Environment ,Caldecott Park/Town Centre Area,PKS00,External Contractor & Operator,0742,2291.00,UVS Sign & Design Ltd,146676,26/07/2012,10170780
Resources & Corporate Governance,Handy man,WHM00,External Contractor & Operator,0742,610.00,Mick Brown Plastering,146699,20/07/2012,10170588
Resources & Corporate Governance ,Domestic Waste Collection,WWC00,Agency Staff,0003,459.15,Fresh Recruitment Solutions (FRS) Ltd,146784,05/07/2012,10169243
Resources & Corporate Governance ,Trade Waste Collection,WWC01,Agency Staff,0003,73.82,Fresh Recruitment Solutions (FRS) Ltd,146784,05/07/2012,10169243
Resources & Corporate Governance ,Domestic Waste Collection,WWC00,Agency Staff,0003,320.67,Fresh Recruitment Solutions (FRS) Ltd,146784,05/07/2012,10169585
Resources & Corporate Governance ,Trade Waste Collection,WWC01,Agency Staff,0003,97.83,Fresh Recruitment Solutions (FRS) Ltd,146784,05/07/2012,10169585
Resources & Corporate Governance ,Trade Waste Collection,WWC01,Agency Staff,0003,489.15,Fresh Recruitment Solutions (FRS) Ltd,146784,05/07/2012,10169586
Resources & Corporate Governance ,Domestic Waste Collection,WWC00,Agency Staff,0003,462.12,Fresh Recruitment Solutions (FRS) Ltd,146784,05/07/2012,10169587
Resources & Corporate Governance,Handy man,WHM00,Agency Staff,0003,451.96,Fresh Recruitment Solutions (FRS) Ltd,146784,05/07/2012,10169589
Resources & Corporate Governance,Handy man,WHM00,Agency Staff,0003,425.84,Fresh Recruitment Solutions (FRS) Ltd,146784,12/07/2012,10169967
Resources & Corporate Governance ,Domestic Waste Collection,WWC00,Agency Staff,0003,211.20,Fresh Recruitment Solutions (FRS) Ltd,146784,20/07/2012,10170247
Resources & Corporate Governance ,Trade Waste Collection,WWC01,Agency Staff,0003,239.78,Fresh Recruitment Solutions (FRS) Ltd,146784,20/07/2012,10170247
Resources & Corporate Governance,Handy man,WHM00,Agency Staff,0003,506.83,Fresh Recruitment Solutions (FRS) Ltd,146784,20/07/2012,10170248
Resources & Corporate Governance,Handy man,WHM00,Agency Staff,0003,451.96,Fresh Recruitment Solutions (FRS) Ltd,146784,26/07/2012,10170683
Capital Program ,Pettiver Crescent,PCH00,Capital Contract Payments,5000,3952.23,REDACTED PERSONAL DATA,146790,06/07/2012,10169647
Resources & Corporate Governance ,WSU Depot,WDP00,Messing Facilities,0332,1536.00,Regentcomms Ltd,146821,20/07/2012,10170022
Resources & Corporate Governance ,Retired Employees,RET00,Additional Pension Payments,0014,11655.83,WCC Pension Fund,146914,05/07/2012,10169790
Resources & Corporate Governance ,Retired Employees,RET00,Additional Pension Payments,0014,11655.83,WCC Pension Fund,146914,26/07/2012,10170936
Capital Program ,Pettiver Crescent,PCH00,Capital Contract Payments,5000,4700.00,REDACTED PERSONAL DATA,146962,26/07/2012,10170766
Economy Development & Culture,Building Control Services,BCS00,Postage & Distribution,0370,8.57,TNT Post Midlands Ltd,146983,05/07/2012,10169144
Economy Development & Culture,Building Regulation Fee Earning Account,BCS99,Postage & Distribution,0370,11.36,TNT Post Midlands Ltd,146983,05/07/2012,10169144
Resources & Corporate Governance,Central Business Support Services,CSS15,Postage & Distribution,0370,53.60,TNT Post Midlands Ltd,146983,05/07/2012,10169144
Resources & Corporate Governance ,Council Tax and NNDR Collection,CTX01,Postage & Distribution,0370,222.96,TNT Post Midlands Ltd,146983,05/07/2012,10169144
Resources & Corporate Governance ,Electoral Registration,ERG00,Postage & Distribution,0370,58.69,TNT Post Midlands Ltd,146983,05/07/2012,10169144
Sustainable Inclusive Communities,Housing Benefit Administration,HBA00,Postage & Distribution,0370,134.06,TNT Post Midlands Ltd,146983,05/07/2012,10169144
Housing Revenue Account ,Supervision and Management General,MAN00,Postage & Distribution,0370,105.87,TNT Post Midlands Ltd,146983,05/07/2012,10169144
Resources & Corporate Governance ,General Administration,WAD00,Postage & Distribution,0370,13.81,TNT Post Midlands Ltd,146983,05/07/2012,10169144
Economy Development & Culture,Art Gallery and Museum,AGM00,Postage & Distribution,0370,0.58,TNT Post Midlands Ltd,146983,20/07/2012,10169418
Economy Development & Culture,Building Control Services,BCS00,Postage & Distribution,0370,0.83,TNT Post Midlands Ltd,146983,20/07/2012,10169418
Economy Development & Culture,Building Regulation Fee Earning Account,BCS99,Postage & Distribution,0370,1.09,TNT Post Midlands Ltd,146983,20/07/2012,10169418
Resources & Corporate Governance,Central Business Support Services,CSS15,Postage & Distribution,0370,171.75,TNT Post Midlands Ltd,146983,20/07/2012,10169418
Resources & Corporate Governance ,Council Tax and NNDR Collection,CTX01,Postage & Distribution,0370,229.31,TNT Post Midlands Ltd,146983,20/07/2012,10169418
Resources & Corporate Governance ,Electoral Registration,ERG00,Postage & Distribution,0370,29.35,TNT Post Midlands Ltd,146983,20/07/2012,10169418
Sustainable Inclusive Communities,Housing Benefit Administration,HBA00,Postage & Distribution,0370,182.80,TNT Post Midlands Ltd,146983,20/07/2012,10169418
Housing Revenue Account ,Supervision and Management General,MAN00,Postage & Distribution,0370,39.53,TNT Post Midlands Ltd,146983,20/07/2012,10169418
Resources & Corporate Governance ,General Administration,WAD00,Postage & Distribution,0370,5.52,TNT Post Midlands Ltd,146983,20/07/2012,10169418
Economy Development & Culture,Building Control Services,BCS00,Postage & Distribution,0370,2.40,TNT Post Midlands Ltd,146983,20/07/2012,10169960
Economy Development & Culture,Building Regulation Fee Earning Account,BCS99,Postage & Distribution,0370,3.19,TNT Post Midlands Ltd,146983,20/07/2012,10169960
Resources & Corporate Governance,Central Business Support Services,CSS15,Postage & Distribution,0370,63.68,TNT Post Midlands Ltd,146983,20/07/2012,10169960
Resources & Corporate Governance ,Council Tax and NNDR Collection,CTX01,Postage & Distribution,0370,152.77,TNT Post Midlands Ltd,146983,20/07/2012,10169960
Resources & Corporate Governance ,Electoral Registration,ERG00,Postage & Distribution,0370,0.34,TNT Post Midlands Ltd,146983,20/07/2012,10169960
Sustainable Inclusive Communities,Housing Benefit Administration,HBA00,Postage & Distribution,0370,138.20,TNT Post Midlands Ltd,146983,20/07/2012,10169960
Housing Revenue Account ,Supervision and Management General,MAN00,Postage & Distribution,0370,68.42,TNT Post Midlands Ltd,146983,20/07/2012,10169960
Resources & Corporate Governance ,General Administration,WAD00,Postage & Distribution,0370,2.03,TNT Post Midlands Ltd,146983,20/07/2012,10169960
Economy Development & Culture,Art Gallery and Museum,AGM00,Postage & Distribution,0370,89.55,TNT Post Midlands Ltd,146983,20/07/2012,10169961
Economy Development & Culture,Building Control Services,BCS00,Postage & Distribution,0370,6.30,TNT Post Midlands Ltd,146983,20/07/2012,10169961
Economy Development & Culture,Building Regulation Fee Earning Account,BCS99,Postage & Distribution,0370,8.34,TNT Post Midlands Ltd,146983,20/07/2012,10169961
Resources & Corporate Governance,Central Business Support Services,CSS15,Postage & Distribution,0370,69.90,TNT Post Midlands Ltd,146983,20/07/2012,10169961
Resources & Corporate Governance ,Council Tax and NNDR Collection,CTX01,Postage & Distribution,0370,209.97,TNT Post Midlands Ltd,146983,20/07/2012,10169961
Resources & Corporate Governance ,Electoral Registration,ERG00,Postage & Distribution,0370,7.44,TNT Post Midlands Ltd,146983,20/07/2012,10169961
Sustainable Inclusive Communities,Housing Benefit Administration,HBA00,Postage & Distribution,0370,217.96,TNT Post Midlands Ltd,146983,20/07/2012,10169961
Housing Revenue Account ,Supervision and Management General,MAN00,Postage & Distribution,0370,43.81,TNT Post Midlands Ltd,146983,20/07/2012,10169961
Resources & Corporate Governance ,General Administration,WAD00,Postage & Distribution,0370,2.66,TNT Post Midlands Ltd,146983,20/07/2012,10169961
Economy Development & Culture,Building Control Services,BCS00,Postage & Distribution,0370,7.43,TNT Post Midlands Ltd,146983,26/07/2012,10170360
Economy Development & Culture,Building Regulation Fee Earning Account,BCS99,Postage & Distribution,0370,9.86,TNT Post Midlands Ltd,146983,26/07/2012,10170360
Resources & Corporate Governance,Central Business Support Services,CSS15,Postage & Distribution,0370,132.35,TNT Post Midlands Ltd,146983,26/07/2012,10170360
Resources & Corporate Governance ,Council Tax and NNDR Collection,CTX01,Postage & Distribution,0370,199.03,TNT Post Midlands Ltd,146983,26/07/2012,10170360
Resources & Corporate Governance ,Electoral Registration,ERG00,Postage & Distribution,0370,16.44,TNT Post Midlands Ltd,146983,26/07/2012,10170360
Sustainable Inclusive Communities,Housing Benefit Administration,HBA00,Postage & Distribution,0370,154.87,TNT Post Midlands Ltd,146983,26/07/2012,10170360
Housing Revenue Account ,Supervision and Management General,MAN00,Postage & Distribution,0370,1139.52,TNT Post Midlands Ltd,146983,26/07/2012,10170360
Economy Development & Culture,Planning General/Income,PLN00,Postage & Distribution,0370,16.71,TNT Post Midlands Ltd,146983,26/07/2012,10170360
Resources & Corporate Governance ,General Administration,WAD00,Postage & Distribution,0370,440.71,TNT Post Midlands Ltd,146983,26/07/2012,10170360
Economy Development & Culture,Art Gallery and Museum,AGM00,Postage & Distribution,0370,0.19,TNT Post Midlands Ltd,146983,26/07/2012,10170361
Economy Development & Culture,Building Control Services,BCS00,Postage & Distribution,0370,1.52,TNT Post Midlands Ltd,146983,26/07/2012,10170361
Economy Development & Culture,Building Regulation Fee Earning Account,BCS99,Postage & Distribution,0370,2.01,TNT Post Midlands Ltd,146983,26/07/2012,10170361
Resources & Corporate Governance,Central Business Support Services,CSS15,Postage & Distribution,0370,41.08,TNT Post Midlands Ltd,146983,26/07/2012,10170361
Resources & Corporate Governance ,Council Tax and NNDR Collection,CTX01,Postage & Distribution,0370,152.05,TNT Post Midlands Ltd,146983,26/07/2012,10170361
Resources & Corporate Governance ,Electoral Registration,ERG00,Postage & Distribution,0370,94.23,TNT Post Midlands Ltd,146983,26/07/2012,10170361
Sustainable Inclusive Communities,Housing Benefit Administration,HBA00,Postage & Distribution,0370,152.64,TNT Post Midlands Ltd,146983,26/07/2012,10170361
Housing Revenue Account ,Supervision and Management General,MAN00,Postage & Distribution,0370,275.88,TNT Post Midlands Ltd,146983,26/07/2012,10170361
Economy Development & Culture,Planning General/Income,PLN00,Postage & Distribution,0370,3.70,TNT Post Midlands Ltd,146983,26/07/2012,10170361
Resources & Corporate Governance ,General Administration,WAD00,Postage & Distribution,0370,3.37,TNT Post Midlands Ltd,146983,26/07/2012,10170361
Economy Development & Culture,Art Gallery and Museum,AGM00,Postage & Distribution,0370,4.21,TNT Post Midlands Ltd,146983,26/07/2012,10170362
Economy Development & Culture,Building Control Services,BCS00,Postage & Distribution,0370,4.70,TNT Post Midlands Ltd,146983,26/07/2012,10170362
Economy Development & Culture,Building Regulation Fee Earning Account,BCS99,Postage & Distribution,0370,6.22,TNT Post Midlands Ltd,146983,26/07/2012,10170362
Resources & Corporate Governance,Central Business Support Services,CSS15,Postage & Distribution,0370,64.37,TNT Post Midlands Ltd,146983,26/07/2012,10170362
Resources & Corporate Governance ,Council Tax and NNDR Collection,CTX01,Postage & Distribution,0370,287.12,TNT Post Midlands Ltd,146983,26/07/2012,10170362
Resources & Corporate Governance ,Electoral Registration,ERG00,Postage & Distribution,0370,3.08,TNT Post Midlands Ltd,146983,26/07/2012,10170362
Sustainable Inclusive Communities,Housing Benefit Administration,HBA00,Postage & Distribution,0370,193.19,TNT Post Midlands Ltd,146983,26/07/2012,10170362
Housing Revenue Account ,Supervision and Management General,MAN00,Postage & Distribution,0370,166.74,TNT Post Midlands Ltd,146983,26/07/2012,10170362
Economy Development & Culture,Planning General/Income,PLN00,Postage & Distribution,0370,33.37,TNT Post Midlands Ltd,146983,26/07/2012,10170362
Resources & Corporate Governance ,General Administration,WAD00,Postage & Distribution,0370,8.31,TNT Post Midlands Ltd,146983,26/07/2012,10170362
Economy Development & Culture,Building Control Services,BCS00,Postage & Distribution,0370,5.79,TNT Post Midlands Ltd,146983,26/07/2012,10170494
Economy Development & Culture,Building Regulation Fee Earning Account,BCS99,Postage & Distribution,0370,7.67,TNT Post Midlands Ltd,146983,26/07/2012,10170494
Resources & Corporate Governance,Central Business Support Services,CSS15,Postage & Distribution,0370,55.40,TNT Post Midlands Ltd,146983,26/07/2012,10170494
Resources & Corporate Governance ,Council Tax and NNDR Collection,CTX01,Postage & Distribution,0370,254.20,TNT Post Midlands Ltd,146983,26/07/2012,10170494
Resources & Corporate Governance ,Electoral Registration,ERG00,Postage & Distribution,0370,17.27,TNT Post Midlands Ltd,146983,26/07/2012,10170494
Sustainable Inclusive Communities,Housing Benefit Administration,HBA00,Postage & Distribution,0370,134.23,TNT Post Midlands Ltd,146983,26/07/2012,10170494
Housing Revenue Account ,Supervision and Management General,MAN00,Postage & Distribution,0370,1197.58,TNT Post Midlands Ltd,146983,26/07/2012,10170494
Resources & Corporate Governance ,General Administration,WAD00,Postage & Distribution,0370,5.65,TNT Post Midlands Ltd,146983,26/07/2012,10170494
Resources & Corporate Governance,Corporate Property R&M,CPA01,R&M External Contractors,0100,18439.88,General Asphalte Company,147047,26/07/2012,10168014
Housing Revenue Account ,Repainting Schemes,UMR02,R&M External Contractors,0100,10903.85,Bell Decorating Group Ltd,147075,05/07/2012,10169667
Housing Revenue Account ,Repainting Schemes,UMR02,R&M External Contractors,0100,7456.22,Bell Decorating Group Ltd,147075,05/07/2012,10169689
Housing Revenue Account ,Gas Heating Systems,UMR01,R&M External Contractors,0100,25477.04,Integral UK Ltd,147080,12/07/2012,10169827
Housing Revenue Account ,Unplanned Maintenance and Repair,UMR00,R&M External Contractors,0100,17983.66,Integral UK Ltd,147080,05/07/2012,10169995
Housing Revenue Account ,Gas Heating Systems,UMR01,R&M External Contractors,0100,825.00,Integral UK Ltd,147080,05/07/2012,10169995
Capital Program ,Disabled Adaptations,HCR01,Capital Contract Payments,5000,7782.27,Intelligent Disabled Solutions Ltd,147081,26/07/2012,10170795
Capital Program ,Disabled Adaptations,HCR01,Capital Contract Payments,5000,4231.95,Intelligent Disabled Solutions Ltd,147081,26/07/2012,10170796
Resources & Corporate Governance ,Domestic Waste Collection,WWC00,External Contractor & Operator,0742,450.00,James Baxter Haulage Ltd,147159,05/07/2012,10169347
Resources & Corporate Governance ,Domestic Waste Collection,WWC00,External Contractor & Operator,0742,450.00,James Baxter Haulage Ltd,147159,05/07/2012,10169878
Capital Program ,Queen's Diamond Jubilee Leisure Centre Project,LEI03,Capital Contract Payments,5000,4428.75,B3 Architects,147190,20/07/2012,10169774
Economy Development & Culture,Gypsy and Traveller Enforcement,PLN10,External Legal Costs,0741,1200.00,Mr Jack Smyth,147226,05/07/2012,10168939
Resources & Corporate Governance,Handy man,WHM00,Materials,0303,1232.53,ECA Supplies (Coventry) Limited,147276,26/07/2012,10169910
Resources & Corporate Governance,Handy man,WHM00,External Contractor & Operator,0742,588.00,Stephen Lamb Fencing,147298,26/07/2012,10170837
Resources & Corporate Governance ,WSU Depot,WDP00,Messing Facilities,0332,429.17,Stewart Groom Flooring,147316,05/07/2012,10169575
Resources & Corporate Governance,Handy man,WHM00,External Contractor & Operator,0742,529.16,Stewart Groom Flooring,147316,20/07/2012,10170597
Resources & Corporate Governance,Handy man,WHM00,External Contractor & Operator,0742,429.99,Stewart Groom Flooring,147316,26/07/2012,10170698
Resources & Corporate Governance ,Domestic Waste Collection,WWC00,Contract Hire,0220,640.00,Trash UK Limited,147379,05/07/2012,10169631
Resources & Corporate Governance,Handy man,WHM00,Materials,0303,620.79,Edwards Buildbase,147387,12/07/2012,10169153
Resources & Corporate Governance,Handy man,WHM00,Materials,0303,799.05,Edwards Buildbase,147387,26/07/2012,10170523
Resources & Corporate Governance ,"Communications, Consultation and Information Team",BTR20,Publicity & Marketing,0377,3000.00,Leicester Football Club Plc,147389,26/07/2012,10170899
Housing Revenue Account ,Property Maintenance,MAN23,Consultancy Costs,0740,6305.00,Howard Ward Associates LLP,147433,20/07/2012,10170390
Resources & Corporate Governance,Handy man,WHM00,Materials,0303,953.78,Robert Pochin Limited,147536,05/07/2012,10169577
Resources & Corporate Governance,Handy man,WHM00,Materials,0303,885.40,Robert Pochin Limited,147536,20/07/2012,10170370
Resources & Corporate Governance,Handy man,WHM00,Materials,0303,529.76,Robert Pochin Limited,147536,26/07/2012,10170740
Economy Development & Culture,Gypsy and Traveller Enforcement,PLN10,External Legal Costs,0741,5750.00,Mr Philip Williams,147753,20/07/2012,10170395
Resources & Corporate Governance ,Grounds Maintenance,WGM00,Vehicle Repair and Maintenance,0200,1852.16,Chris Tallis Farm Machinery Limited,147758,19/07/2012,10170418
Capital Program ,Viaduct Cycleways,CYC02,Capital Contract Payments,5000,21259.33,Currall Lewis & Martin (Construction) Ltd,147769,12/07/2012,10169860
Resources & Corporate Governance ,Highways,WHG00,External Contractor & Operator,0742,32149.15,Currall Lewis & Martin (Construction) Ltd,147769,12/07/2012,10169861
Resources & Corporate Governance,Corporate Property R&M,CPA01,R&M External Contractors,0100,950.00,Safe Hands Contract Services,147838,12/07/2012,10170206
Resources & Corporate Governance,Handy man,WHM00,External Contractor & Operator,0742,588.00,D Wesley Contracts,147871,26/07/2012,10170836
Capital Program ,Queen's Diamond Jubilee Leisure Centre Project,LEI03,Capital Contract Payments,5000,320867.35,Shepherd Construction Ltd,148014,12/07/2012,10170122
Resources & Corporate Governance,Handy man,WHM00,External Contractor & Operator,0742,562.50,Dean Hudson,148035,26/07/2012,10170819
Resources & Corporate Governance,Handy man,WHM00,External Contractor & Operator,0742,633.75,Ford Tucker,148036,05/07/2012,10169915
Resources & Corporate Governance,Handy man,WHM00,External Contractor & Operator,0742,615.00,Ford Tucker,148036,12/07/2012,10170258
Resources & Corporate Governance,Handy man,WHM00,External Contractor & Operator,0742,660.00,Ford Tucker,148036,20/07/2012,10170604
Resources & Corporate Governance,Handy man,WHM00,External Contractor & Operator,0742,600.00,Ford Tucker,148036,26/07/2012,10170874
Capital Program ,Vehicle Workshop Extension,VWE00,Capital Contract Payments,5000,794.00,ST Consult,148059,20/07/2012,10170181
Capital Program ,Vehicle Workshop Extension,VWE00,Capital Contract Payments,5000,1362.00,ST Consult,148059,20/07/2012,10170427
Resources & Corporate Governance ,"Communications, Consultation and Information Team",BTR20,Consultation,0378,1235.00,Halo FX Limited,148073,12/07/2012,10169865
Capital Program ,Pettiver Crescent,PCH00,Capital Contract Payments,5000,7220.00,REDACTED PERSONAL DATA,148134,12/07/2012,10170185
Resources & Corporate Governance ,Support Services,CIS20,Recruitment Expenses,0012,19.95,Team Prevent UK Ltd,148151,20/07/2012,10169654
Economy Development & Culture,Car Parks General,CPK01,Recruitment Expenses,0012,7.98,Team Prevent UK Ltd,148151,20/07/2012,10169654
Resources & Corporate Governance,Business Support Services,CSS10,Recruitment Expenses,0012,19.95,Team Prevent UK Ltd,148151,20/07/2012,10169654
Economy Development & Culture,Decrim. of Car Parking on street parking,DPE02,Recruitment Expenses,0012,31.92,Team Prevent UK Ltd,148151,20/07/2012,10169654
Economy Development & Culture,Positive Futures,LSD04,Recruitment Expenses,0012,39.90,Team Prevent UK Ltd,148151,20/07/2012,10169654
Economy Development & Culture,Active Lifestyles,LSD08,Recruitment Expenses,0012,57.40,Team Prevent UK Ltd,148151,20/07/2012,10169654
Housing Revenue Account ,Supervision and Management General,MAN00,Recruitment Expenses,0012,37.45,Team Prevent UK Ltd,148151,20/07/2012,10169654
Economy Development & Culture,Planning Control,PLN01,Recruitment Expenses,0012,39.90,Team Prevent UK Ltd,148151,20/07/2012,10169654
Sustainable Environment,Regulatory Services,REG00,Recruitment Expenses,0012,39.90,Team Prevent UK Ltd,148151,20/07/2012,10169654
Resources & Corporate Governance ,TREE WORKS,WGM01,Recruitment Expenses,0012,190.00,Team Prevent UK Ltd,148151,20/07/2012,10169654
Resources & Corporate Governance,Handy man,WHM00,Recruitment Expenses,0012,59.95,Team Prevent UK Ltd,148151,20/07/2012,10169654
Housing Revenue Account ,Sheltered Housing,AGP00,Employee wellbeing/Other employee expenses,0021,69.00,Team Prevent UK Ltd,148151,20/07/2012,10169654
Economy Development & Culture,Car Parks General,CPK01,Employee wellbeing/Other employee expenses,0021,13.80,Team Prevent UK Ltd,148151,20/07/2012,10169654
Economy Development & Culture,Decrim. of Car Parking on street parking,DPE02,Employee wellbeing/Other employee expenses,0021,55.20,Team Prevent UK Ltd,148151,20/07/2012,10169654
Sustainable Environment ,Street Scene,ENV30,Employee wellbeing/Other employee expenses,0021,40.00,Team Prevent UK Ltd,148151,20/07/2012,10169654
Housing Revenue Account ,Property Maintenance,MAN23,Employee wellbeing/Other employee expenses,0021,69.00,Team Prevent UK Ltd,148151,20/07/2012,10169654
Economy Development & Culture,Planning Control,PLN01,Employee wellbeing/Other employee expenses,0021,80.00,Team Prevent UK Ltd,148151,20/07/2012,10169654
Resources & Corporate Governance ,Toilet Cleaning,WBC01,Employee wellbeing/Other employee expenses,0021,40.00,Team Prevent UK Ltd,148151,20/07/2012,10169654
Resources & Corporate Governance ,Grounds Maintenance,WGM00,Employee wellbeing/Other employee expenses,0021,227.50,Team Prevent UK Ltd,148151,20/07/2012,10169654
Resources & Corporate Governance ,TREE WORKS,WGM01,Employee wellbeing/Other employee expenses,0021,195.00,Team Prevent UK Ltd,148151,20/07/2012,10169654
Resources & Corporate Governance,Handy man,WHM00,Employee wellbeing/Other employee expenses,0021,200.00,Team Prevent UK Ltd,148151,20/07/2012,10169654
Resources & Corporate Governance ,Street Cleansing,WSC00,Employee wellbeing/Other employee expenses,0021,80.00,Team Prevent UK Ltd,148151,20/07/2012,10169654
Resources & Corporate Governance ,Domestic Waste Collection,WWC00,Employee wellbeing/Other employee expenses,0021,87.00,Team Prevent UK Ltd,148151,20/07/2012,10169654
Economy Development & Culture,Ken Marriott Leisure Centre,KML00,Other,0763,3450.00,Strategic Leisure,148196,20/07/2012,10170384
Resources & Corporate Governance ,Financial Services,RES10,External Contractor & Operator,0742,1250.00,Fleethire Ltd,148197,05/07/2012,10169546
Capital Program ,Pettiver Crescent,PCH00,Capital Contract Payments,5000,4484.14,REDACTED PERSONAL DATA,148206,05/07/2012,10169649
,Balance Sheet,BS,Car Loan Scheme,9261,2895.00,Lutterworth Ford,148225,12/07/2012,10170209
Capital Program ,RG Disabled Facilities,REN01,Capital Grants,5014,2567.98,Possum,148231,19/07/2012,10170341
Resources & Corporate Governance ,Head of Business Transformation,BTR00,Consultancy Costs,0740,3500.00,Barber Harrison & Platt,148237,20/07/2012,10170388
Economy Development & Culture,Positive Futures,LSD04,Development Activities,0450,950.00,Aston Manor Coaches,148247,20/07/2012,10170547
Economy Development & Culture,Economic Development General,ECD00,Development Activities,0450,1000.00,Life Beyond School,148264,26/07/2012,10170791
,Balance Sheet,BS,Contributions To NNDR Pool,9476,1051796.00,Department for Communities & Local Govt,,04/07/2012,
,Balance Sheet,BS,Contributions To NNDR Pool,9476,1051796.00,Department for Communities & Local Govt,,19/07/2012,
